Workbook

Sheet Summary - 1v1
A1: KR | B1: 2014-06-24 | K1: Totals | L1: 2014-06-26
A2: Weeks Remaining | B2: Bronze | C2: Silver | D2: Gold | E2: Platinum | F2: Diamond | G2: Master | H2: Grandmaster | I2: Totals | K2: Weeks Remaining | L2: Bronze | M2: Silver | N2: Gold | O2: Platinum | P2: Diamond | Q2: Master | R2: Grandmaster | S2: Totals
A3: 1 | B3: 220 | C3: 398 | D3: 2126 | E3: 1718 | F3: 1667 | G3: 200 | H3: 199 | I3: 6528 | K3: 1 | L3: =B3+B18+B33 -> 1012 | M3: =C3+C18+C33 -> 1730 | N3: 8489 | O3: 6901 | P3: 7952 | Q3: 1182 | R3: 592 | S3: 27858
A4: 2 | B4: 69 | C4: 134 | D4: 530 | E4: 438 | F4: 342 | G4: 59 | I4: 1572 | K4: 2 | L4: =B4+B19+B34 -> 362 | M4: 622 | N4: 3053 | O4: 2298 | P4: 2387 | Q4: 374 | R4: 0 | S4: 9096
A5: 3 | B5: 57 | C5: 164 | D5: 562 | E5: 376 | F5: 296 | G5: 50 | I5: 1505 | K5: 3 | L5: =B5+B20+B35 -> 323 | M5: 703 | N5: 2996 | O5: 2167 | P5: 2008 | Q5: 347 | R5: 0 | S5: 8544
A6: 4 | B6: 69 | C6: 206 | D6: 608 | E6: 339 | F6: 293 | G6: 59 | I6: 1574 | K6: 4 | L6: =B6+B21+B36 -> 352 | M6: 830 | N6: 3390 | O6: 2307 | P6: 1971 | Q6: 397 | R6: 0 | S6: 9247
A7: 5 | B7: 86 | C7: 236 | D7: 744 | E7: 379 | F7: 258 | G7: 50 | I7: 1753 | K7: 5 | L7: =B7+B22+B37 -> 408 | M7: 1038 | N7: 4202 | O7: 2544 | P7: 2122 | Q7: 445 | R7: 0 | S7: 10759
A8: 6 | B8: 115 | C8: 344 | D8: 844 | E8: 382 | F8: 272 | G8: 75 | I8: 2032 | K8: 6 | L8: =B8+B23+B38 -> 526 | M8: 1388 | N8: 5096 | O8: 2952 | P8: 2067 | Q8: 444 | R8: 0 | S8: 12473
A9: 7 | B9: 186 | C9: 589 | D9: 1123 | E9: 379 | F9: 319 | G9: 79 | I9: 2675 | K9: 7 | L9: =B9+B24+B39 -> 727 | M9: 2215 | N9: 6905 | O9: 3354 | P9: 2389 | Q9: 477 | R9: 0 | S9: 16067
A10: 8 | B10: 294 | C10: 931 | D10: 1461 | E10: 412 | F10: 288 | G10: 85 | I10: 3471 | K10: 8 | L10: =B10+B25+B40 -> 1240 | M10: 4205 | N10: 10038 | O10: 3701 | P10: 2410 | Q10: 543 | R10: 0 | S10: 22137
A11: 9 | B11: 617 | C11: 1904 | D11: 1738 | E11: 478 | F11: 309 | G11: 87 | I11: 5133 | K11: 9 | L11: =B11+B26+B41 -> 2861 | M11: 9637 | N11: 14665 | O11: 4315 | P11: 2553 | Q11: 527 | R11: 0 | S11: 34558
A12: 10 | B12: 3238 | C12: 5091 | D12: 2544 | E12: 815 | F12: 413 | G12: 122 | I12: 12223 | K12: 10 | L12: =B12+B27+B42 -> 16954 | M12: 34008 | N12: 25019 | O12: 7527 | P12: 3890 | Q12: 745 | R12: 0 | S12: 88143
A13: 11 | B13: 3776 | C13: 3816 | D13: 1756 | E13: 718 | F13: 268 | G13: 75 | I13: 10409 | K13: 11 | L13: =B13+B28+B43 -> 9793 | M13: =C13+C28+C43 -> 14518 | N13: =D13+D28+D43 -> 7551 | O13: =E13+E28+E43 -> 3150 | P13: =F13+F28+F43 -> 1304 | Q13: =G13+G28+G43 -> 188 | R13: =H13+H28+H43 -> 0 | S13: =I13+I28+I43 -> 36504
A14: Totals | B14: 8727 | C14: 13813 | D14: 14036 | E14: 6434 | F14: 4725 | G14: 941 | H14: 199 | I14: 48875 | K14: Totals | L14: =B14+B29+B44 -> 34558 | M14: =C14+C29+C44 -> 70894 | N14: =D14+D29+D44 -> 91404 | O14: =E14+E29+E44 -> 41216 | P14: =F14+F29+F44 -> 31053 | Q14: =G14+G29+G44 -> 5669 | R14: =H14+H29+H44 -> 592 | S14: =I14+I29+I44 -> 275386
A16: EU | B16: 2014-06-23 | K16: Percentages
A17: Weeks Remaining | B17: Bronze | C17: Silver | D17: Gold | E17: Platinum | F17: Diamond | G17: Master | H17: GM | I17: Totals | K17: 1 | L17: =L3/$S3 -> 0.03632708737 | M17: =M3/$S3 -> 0.06210065331 | N17: 0.3047239572 | O17: 0.247720583 | P17: 0.2854476273 | Q17: 0.04242946371 | R17: 0.02125062819 | S17: =S3/$S$14 -> 0.1011598266
A18: 1 | B18: 371 | C18: 720 | D18: 3228 | E18: 2801 | F18: 3566 | G18: 608 | H18: 194 | I18: 11488 | K18: 2 | L18: =L4/$S4 -> 0.03979771328 | M18: 0.06838170624 | N18: 0.3356420405 | O18: 0.2526385224 | P18: 0.2624230431 | Q18: 0.04111697449 | R18: 0 | S18: =S4/$S$14 -> 0.03303000153
A19: 2 | B19: 132 | C19: 242 | D19: 1335 | E19: 1026 | F19: 1143 | G19: 198 | H19: 0 | I19: 4076 | K19: 3 | L19: =L5/$S5 -> 0.03780430712 | M19: 0.08227996255 | N19: 0.3506554307 | O19: 0.2536282772 | P19: 0.2350187266 | Q19: 0.04061329588 | R19: 0 | S19: 0.03102554233
A20: 3 | B20: 152 | C20: 282 | D20: 1295 | E20: 967 | F20: 928 | G20: 142 | H20: 0 | I20: 3766 | K20: 4 | L20: =L6/$S6 -> 0.03806639991 | M20: 0.08975884071 | N20: 0.3666053855 | O20: 0.2494863199 | P20: 0.2131502109 | Q20: 0.04293284308 | R20: 0 | S20: 0.03357832279
A21: 4 | B21: 129 | C21: 298 | D21: 1428 | E21: 1025 | F21: 886 | G21: 190 | H21: 0 | I21: 3956 | K21: 5 | L21: =L7/$S7 -> 0.03792173994 | M21: 0.09647736779 | N21: 0.3905567432 | O21: 0.236453202 | P21: 0.1972302259 | Q21: 0.04136072126 | R21: 0 | S21: 0.03906879798
A22: 5 | B22: 160 | C22: 404 | D22: 1666 | E22: 1133 | F22: 1007 | G22: 223 | H22: 0 | I22: 4593 | K22: 6 | L22: =L8/$S8 -> 0.04217108955 | M22: 0.1112803656 | N22: 0.408562495 | O22: 0.2366712098 | P22: 0.1657179508 | Q22: 0.03559688928 | R22: 0 | S22: 0.04529278903
A23: 6 | B23: 203 | C23: 491 | D23: 2116 | E23: 1310 | F23: 948 | G23: 205 | H23: 0 | I23: 5273 | K23: 7 | L23: =L9/$S9 -> 0.0452480239 | M23: 0.1378602104 | N23: 0.429762868 | O23: 0.2087508558 | P23: 0.1486898612 | Q23: 0.02968818074 | R23: 0 | S23: 0.0583435614
A24: 7 | B24: 261 | C24: 787 | D24: 2909 | E24: 1586 | F24: 1102 | G24: 216 | H24: 0 | I24: 6861 | K24: 8 | L24: =L10/$S10 -> 0.05601481682 | M24: 0.1899534716 | N24: 0.4534489768 | O24: 0.1671861589 | P24: 0.1088675069 | Q24: 0.02452906898 | R24: 0 | S24: 0.08038535002
A25: 8 | B25: 417 | C25: 1472 | D25: 4130 | E25: 1698 | F25: 1149 | G25: 229 | H25: 0 | I25: 9095 | K25: 9 | L25: =L11/$S11 -> 0.08278835581 | M25: 0.2788645176 | N25: 0.4243590486 | O25: 0.1248625499 | P25: 0.073875803 | Q25: 0.0152497251 | R25: 0 | S25: 0.1254893132
A26: 9 | B26: 938 | C26: 3166 | D26: 6110 | E26: 1910 | F26: 1118 | G26: 226 | H26: 0 | I26: 13468 | K26: 10 | L26: =L12/$S12 -> 0.1923465278 | M26: 0.3858275756 | N26: 0.2838455691 | O26: 0.08539532351 | P26: 0.04413282961 | Q26: 0.008452174308 | R26: 0 | S26: 0.3200707371
A27: 10 | B27: 3815 | C27: 11345 | D27: 11064 | E27: 2906 | F27: 1566 | G27: 275 | H27: 0 | I27: 30971 | K27: 11 | L27: =L13/$S13 -> 0.2682719702 | M27: 0.39770984 | N27: 0.2068540434 | O27: 0.08629191321 | P27: 0.03572211265 | Q27: 0.005150120535 | R27: 0 | S27: 0.1325557581
A28: 11 | B28: 6017 | C28: 10702 | D28: 5795 | E28: 2432 | F28: 1036 | G28: 113 | H28: 0 | I28: 26095 | K28: Totals | L28: 0.1254893132 | M28: 0.2574350185 | N28: 0.3319122976 | O28: 0.1496662866 | P28: 0.1127617235 | Q28: 0.02058565069 | R28: 0.002149709862 | S28: =SUM(S17:S27) -> 1
A29: Totals | B29: 12595 | C29: 29909 | D29: 41076 | E29: 18794 | F29: 14449 | G29: 2625 | H29: 194 | I29: 119642
A31: AM | B31: 2014-06-20
A32: Weeks Remaining | B32: Bronze | C32: Silver | D32: Gold | E32: Platinum | F32: Diamond | G32: Master | H32: GM | I32: Totals
A33: 1 | B33: 421 | C33: 612 | D33: 3135 | E33: 2382 | F33: 2719 | G33: 374 | H33: 199 | I33: 9842
A34: 2 | B34: 161 | C34: 246 | D34: 1188 | E34: 834 | F34: 902 | G34: 117 | H34: 0 | I34: 3448
A35: 3 | B35: 114 | C35: 257 | D35: 1139 | E35: 824 | F35: 784 | G35: 155 | H35: 0 | I35: 3273
A36: 4 | B36: 154 | C36: 326 | D36: 1354 | E36: 943 | F36: 792 | G36: 148 | H36: 0 | I36: 3717
A37: 5 | B37: 162 | C37: 398 | D37: 1792 | E37: 1032 | F37: 857 | G37: 172 | H37: 0 | I37: 4413
A38: 6 | B38: 208 | C38: 553 | D38: 2136 | E38: 1260 | F38: 847 | G38: 164 | H38: 0 | I38: 5168
A39: 7 | B39: 280 | C39: 839 | D39: 2873 | E39: 1389 | F39: 968 | G39: 182 | H39: 0 | I39: 6531
A40: 8 | B40: 529 | C40: 1802 | D40: 4447 | E40: 1591 | F40: 973 | G40: 229 | H40: 0 | I40: 9571
A41: 9 | B41: 1306 | C41: 4567 | D41: 6817 | E41: 1927 | F41: 1126 | G41: 214 | H41: 0 | I41: 15957
A42: 10 | B42: 9901 | C42: 17572 | D42: 11411 | E42: 3806 | F42: 1911 | G42: 348 | H42: 0 | I42: 44949
A44: Totals | B44: 13236 | C44: 27172 | D44: 36292 | E44: 15988 | F44: 11879 | G44: 2103 | H44: 199 | I44: 106869
A46: KR
A47: Race Stats
B48: Bronze | F48: Silver | J48: Gold | N48: Platinum | R48: Diamond | V48: Master | Z48: Grandmaster | AD48: Totals | AI48: Bronze | AM48: Silver | AQ48: Gold | AU48: Platinum | AY48: Diamond | BC48: Master | BG48: Grandmaster | BK48: Totals
A49: Weeks Remaining | B49: Z | C49: T | D49: P | E49: R | F49: Z | G49: T | H49: P | I49: R | J49: Z | K49: T | L49: P | M49: R | N49: Z | O49: T | P49: P | Q49: R | R49: Z | S49: T | T49: P | U49: R | V49: Z | W49: T | X49: P | Y49: R | Z49: Z | AA49: T | AB49: P | AC49: R | AD49: Z | AE49: T | AF49: P | AG49: R | AI49: Z | AJ49: T | AK49: P | AL49: R | AM49: Z | AN49: T | AO49: P | AP49: R | AQ49: Z | AR49: T | AS49: P | AT49: R | AU49: Z | AV49: T | AW49: P | AX49: R | AY49: Z | AZ49: T | BA49: P | BB49: R | BC49: Z | BD49: T | BE49: P | BF49: R | BG49: Z | BH49: T | BI49: P | BJ49: R | BK49: Z | BL49: T | BM49: P | BN49: R
A50: 1 | B50: 39 | C50: 82 | D50: 74 | E50: 25 | F50: 78 | G50: 114 | H50: 157 | I50: 49 | J50: 470 | K50: 610 | L50: 771 | M50: 275 | N50: 476 | O50: 484 | P50: 591 | Q50: 167 | R50: 533 | S50: 507 | T50: 526 | U50: 101 | V50: 68 | W50: 70 | X50: 53 | Y50: 9 | Z50: 73 | AA50: 58 | AB50: 67 | AC50: 1 | AD50: =B50+F50+J50+N50+R50+V50+Z50 -> 1737 | AE50: =C50+G50+K50+O50+S50+W50+AA50 -> 1925 | AF50: 2239 | AG50: 627 | AI50: =B50+B67+B84 -> 156 | AJ50: =C50+C67+C84 -> 447 | AK50: 299 | AL50: 110 | AM50: 353 | AN50: 655 | AO50: 519 | AP50: 203 | AQ50: 2284 | AR50: 2880 | AS50: 2406 | AT50: 919 | AU50: 2344 | AV50: 2064 | AW50: 1931 | AX50: 562 | AY50: 2950 | AZ50: 2458 | BA50: 2178 | BB50: 366 | BC50: 488 | BD50: 323 | BE50: 351 | BF50: 20 | BG50: 228 | BH50: 151 | BI50: 206 | BJ50: 7 | BK50: 8803 | BL50: 8978 | BM50: 7890 | BN50: 2187 | BO50: =SUM(BK50:BN50) -> 27858
A51: 2 | B51: 9 | C51: 29 | D51: 24 | E51: 7 | F51: 22 | G51: 50 | H51: 46 | I51: 16 | J51: 129 | K51: 148 | L51: 189 | M51: 64 | N51: 129 | O51: 122 | P51: 143 | Q51: 44 | R51: 116 | S51: 102 | T51: 110 | U51: 14 | V51: 21 | W51: 17 | X51: 20 | Y51: 1 | AD51: =B51+F51+J51+N51+R51+V51+Z51 -> 426 | AE51: 468 | AF51: 532 | AG51: 146 | AI51: =B51+B68+B85 -> 56 | AJ51: =C51+C68+C85 -> 155 | AK51: =D51+D68+D85 -> 116 | AL51: =E51+E68+E85 -> 35 | AM51: =F51+F68+F85 -> 114 | AN51: =G51+G68+G85 -> 260 | AO51: =H51+H68+H85 -> 178 | AP51: =I51+I68+I85 -> 70 | AQ51: =J51+J68+J85 -> 903 | AR51: =K51+K68+K85 -> 954 | AS51: =L51+L68+L85 -> 888 | AT51: =M51+M68+M85 -> 308 | AU51: =N51+N68+N85 -> 804 | AV51: =O51+O68+O85 -> 678 | AW51: =P51+P68+P85 -> 610 | AX51: =Q51+Q68+Q85 -> 206 | AY51: =R51+R68+R85 -> 916 | AZ51: =S51+S68+S85 -> 717 | BA51: =T51+T68+T85 -> 658 | BB51: =U51+U68+U85 -> 96 | BC51: =V51+V68+V85 -> 121 | BD51: =W51+W68+W85 -> 110 | BE51: =X51+X68+X85 -> 135 | BF51: =Y51+Y68+Y85 -> 8 | BG51: =Z51+Z68+Z85 -> 0 | BH51: =AA51+AA68+AA85 -> 0 | BI51: =AB51+AB68+AB85 -> 0 | BJ51: =AC51+AC68+AC85 -> 0 | BK51: =AD51+AD68+AD85 -> 2914 | BL51: =AE51+AE68+AE85 -> 2874 | BM51: =AF51+AF68+AF85 -> 2585 | BN51: =AG51+AG68+AG85 -> 723 | BO51: =SUM(BK51:BN51) -> 9096
A52: 3 | B52: 8 | C52: 27 | D52: 17 | E52: 5 | F52: 26 | G52: 65 | H52: 53 | I52: 20 | J52: 128 | K52: 154 | L52: 207 | M52: 73 | N52: 99 | O52: 108 | P52: 127 | Q52: 42 | R52: 100 | S52: 96 | T52: 87 | U52: 13 | V52: 18 | W52: 15 | X52: 17 | AD52: 379 | AE52: 465 | AF52: 508 | AG52: 153 | AI52: 56 | AJ52: 134 | AK52: 99 | AL52: 34 | AM52: 149 | AN52: 278 | AO52: 205 | AP52: 71 | AQ52: 876 | AR52: 939 | AS52: 862 | AT52: 319 | AU52: 823 | AV52: 594 | AW52: 560 | AX52: 190 | AY52: 742 | AZ52: 637 | BA52: 520 | BB52: 109 | BC52: 137 | BD52: 96 | BE52: 104 | BF52: 10 | BG52: 0 | BH52: 0 | BI52: 0 | BJ52: 0 | BK52: 2783 | BL52: 2678 | BM52: 2350 | BN52: 733 | BO52: 8544
A53: 4 | B53: 13 | C53: 28 | D53: 22 | E53: 6 | F53: 33 | G53: 67 | H53: 83 | I53: 23 | J53: 155 | K53: 173 | L53: 220 | M53: 60 | N53: 100 | O53: 98 | P53: 100 | Q53: 41 | R53: 96 | S53: 92 | T53: 89 | U53: 16 | V53: 15 | W53: 17 | X53: 24 | Y53: 3 | AD53: 412 | AE53: 475 | AF53: 538 | AG53: 149 | AI53: 63 | AJ53: 148 | AK53: 105 | AL53: 36 | AM53: 187 | AN53: 276 | AO53: 284 | AP53: 83 | AQ53: 989 | AR53: 1031 | AS53: 1020 | AT53: 350 | AU53: 844 | AV53: 668 | AW53: 591 | AX53: 204 | AY53: 737 | AZ53: 601 | BA53: 535 | BB53: 98 | BC53: 140 | BD53: 109 | BE53: 134 | BF53: 14 | BG53: 0 | BH53: 0 | BI53: 0 | BJ53: 0 | BK53: 2960 | BL53: 2833 | BM53: 2669 | BN53: 785 | BO53: 9247
A54: 5 | B54: 11 | C54: 34 | D54: 30 | E54: 11 | F54: 52 | G54: 79 | H54: 83 | I54: 22 | J54: 196 | K54: 205 | L54: 259 | M54: 84 | N54: 123 | O54: 101 | P54: 124 | Q54: 31 | R54: 84 | S54: 70 | T54: 87 | U54: 17 | V54: 18 | W54: 14 | X54: 14 | Y54: 4 | AD54: 484 | AE54: 503 | AF54: 597 | AG54: 169 | AI54: 64 | AJ54: 165 | AK54: 128 | AL54: 51 | AM54: 233 | AN54: 351 | AO54: 355 | AP54: 99 | AQ54: 1307 | AR54: 1225 | AS54: 1227 | AT54: 443 | AU54: 940 | AV54: 684 | AW54: 704 | AX54: 216 | AY54: 808 | AZ54: 598 | BA54: 619 | BB54: 97 | BC54: 153 | BD54: 131 | BE54: 152 | BF54: 9 | BG54: 0 | BH54: 0 | BI54: 0 | BJ54: 0 | BK54: 3505 | BL54: 3154 | BM54: 3185 | BN54: 915 | BO54: 10759
A55: 6 | B55: 20 | C55: 37 | D55: 44 | E55: 14 | F55: 71 | G55: 112 | H55: 131 | I55: 30 | J55: 237 | K55: 238 | L55: 272 | M55: 97 | N55: 129 | O55: 113 | P55: 104 | Q55: 36 | R55: 96 | S55: 81 | T55: 79 | U55: 16 | V55: 27 | W55: 22 | X55: 21 | Y55: 5 | AD55: 580 | AE55: 603 | AF55: 651 | AG55: 198 | AI55: 108 | AJ55: 197 | AK55: 170 | AL55: 51 | AM55: 317 | AN55: 485 | AO55: 451 | AP55: 135 | AQ55: 1623 | AR55: 1502 | AS55: 1447 | AT55: 524 | AU55: 1134 | AV55: 825 | AW55: 735 | AX55: 258 | AY55: 777 | AZ55: 588 | BA55: 583 | BB55: 119 | BC55: 146 | BD55: 140 | BE55: 149 | BF55: 9 | BG55: 0 | BH55: 0 | BI55: 0 | BJ55: 0 | BK55: 4105 | BL55: 3737 | BM55: 3535 | BN55: 1096 | BO55: 12473
A56: 7 | B56: 39 | C56: 61 | D56: 72 | E56: 14 | F56: 130 | G56: 171 | H56: 227 | I56: 61 | J56: 323 | K56: 335 | L56: 354 | M56: 111 | N56: 120 | O56: 116 | P56: 108 | Q56: 35 | R56: 100 | S56: 90 | T56: 104 | U56: 25 | V56: 30 | W56: 20 | X56: 24 | Y56: 5 | AD56: 742 | AE56: 793 | AF56: 889 | AG56: 251 | AI56: 165 | AJ56: 265 | AK56: 243 | AL56: 54 | AM56: 517 | AN56: 758 | AO56: 714 | AP56: 226 | AQ56: 2209 | AR56: 1983 | AS56: 2004 | AT56: 709 | AU56: 1282 | AV56: 936 | AW56: 838 | AX56: 298 | AY56: 857 | AZ56: 736 | BA56: 650 | BB56: 146 | BC56: 202 | BD56: 113 | BE56: 146 | BF56: 16 | BG56: 0 | BH56: 0 | BI56: 0 | BJ56: 0 | BK56: 5232 | BL56: 4791 | BM56: 4595 | BN56: 1449 | BO56: 16067
A57: 8 | B57: 61 | C57: 99 | D57: 108 | E57: 26 | F57: 209 | G57: 259 | H57: 346 | I57: 117 | J57: 408 | K57: 411 | L57: 482 | M57: 160 | N57: 131 | O57: 128 | P57: 119 | Q57: 34 | R57: 81 | S57: 95 | T57: 91 | U57: 21 | V57: 31 | W57: 31 | X57: 19 | Y57: 4 | AD57: 921 | AE57: 1023 | AF57: 1165 | AG57: 362 | AI57: 232 | AJ57: 503 | AK57: 390 | AL57: 115 | AM57: 1070 | AN57: 1331 | AO57: 1365 | AP57: 439 | AQ57: 3235 | AR57: 2831 | AS57: 2912 | AT57: 1060 | AU57: 1326 | AV57: 1021 | AW57: 999 | AX57: 355 | AY57: 857 | AZ57: 708 | BA57: 677 | BB57: 168 | BC57: 191 | BD57: 187 | BE57: 149 | BF57: 16 | BG57: 0 | BH57: 0 | BI57: 0 | BJ57: 0 | BK57: 6911 | BL57: 6581 | BM57: 6492 | BN57: 2153 | BO57: 22137
A58: 9 | B58: 137 | C58: 193 | D58: 235 | E58: 52 | F58: 464 | G58: 593 | H58: 665 | I58: 182 | J58: 487 | K58: 476 | L58: 576 | M58: 199 | N58: 134 | O58: 160 | P58: 136 | Q58: 48 | R58: 84 | S58: 120 | T58: 87 | U58: 18 | V58: 26 | W58: 21 | X58: 39 | Y58: 1 | AD58: 1332 | AE58: 1563 | AF58: 1738 | AG58: 500 | AI58: 652 | AJ58: 997 | AK58: 986 | AL58: 226 | AM58: 2626 | AN58: 2986 | AO58: 2985 | AP58: 1040 | AQ58: 4869 | AR58: 3974 | AS58: 4220 | AT58: 1602 | AU58: 1594 | AV58: 1203 | AW58: 1143 | AX58: 375 | AY58: 897 | AZ58: 742 | BA58: 775 | BB58: 139 | BC58: 161 | BD58: 166 | BE58: 187 | BF58: 13 | BG58: 0 | BH58: 0 | BI58: 0 | BJ58: 0 | BK58: 10799 | BL58: 10068 | BM58: 10296 | BN58: 3395 | BO58: 34558
A59: 10 | B59: 754 | C59: 1073 | D59: 1094 | E59: 317 | F59: 1287 | G59: 1561 | H59: 1630 | I59: 613 | J59: 767 | K59: 725 | L59: 764 | M59: 288 | N59: 271 | O59: 232 | P59: 243 | Q59: 69 | R59: 127 | S59: 141 | T59: 120 | U59: 25 | V59: 37 | W59: 40 | X59: 42 | Y59: 3 | AD59: 3243 | AE59: 3772 | AF59: 3893 | AG59: 1315 | AI59: 4186 | AJ59: 5688 | AK59: 5325 | AL59: 1755 | AM59: 9357 | AN59: 10446 | AO59: 10278 | AP59: 3927 | AQ59: 8359 | AR59: 6826 | AS59: 7107 | AT59: 2727 | AU59: 2636 | AV59: 2096 | AW59: 2106 | AX59: 689 | AY59: 1355 | AZ59: 1156 | BA59: 1118 | BB59: 261 | BC59: 255 | BD59: 206 | BE59: 257 | BF59: 27 | BG59: 0 | BH59: 0 | BI59: 0 | BJ59: 0 | BK59: 26148 | BL59: 26418 | BM59: 26191 | BN59: 9386 | BO59: 88143
A60: 11 | B60: 861 | C60: 1269 | D60: 1242 | E60: 404 | F60: 989 | G60: 1196 | H60: 1252 | I60: 379 | J60: 489 | K60: 542 | L60: 556 | M60: 169 | N60: 230 | O60: 212 | P60: 208 | Q60: 68 | R60: 68 | S60: 87 | T60: 89 | U60: 24 | V60: 20 | W60: 19 | X60: 31 | Y60: 5 | AD60: 2657 | AE60: 3325 | AF60: 3378 | AG60: 1049 | AI60: 2290 | AJ60: 3415 | AK60: 3072 | AL60: 1016 | AM60: 3957 | AN60: 4680 | AO60: 4465 | AP60: 1416 | AQ60: 2264 | AR60: 2266 | AS60: 2284 | AT60: 737 | AU60: 1060 | AV60: 912 | AW60: 890 | AX60: 288 | AY60: 415 | AZ60: 394 | BA60: 385 | BB60: 110 | BC60: 58 | BD60: 46 | BE60: 69 | BF60: 15 | BG60: 0 | BH60: 0 | BI60: 0 | BJ60: 0 | BK60: 10044 | BL60: 11713 | BM60: 11165 | BN60: 3582 | BO60: 36504
A61: Totals | B61: =SUM(B50:B60) -> 1952 | C61: =SUM(C50:C60) -> 2932 | D61: 2962 | E61: 881 | F61: 3361 | G61: 4267 | H61: 4673 | I61: 1512 | J61: 3789 | K61: 4017 | L61: 4650 | M61: 1580 | N61: 1942 | O61: 1874 | P61: 2003 | Q61: 615 | R61: 1485 | S61: 1481 | T61: 1469 | U61: 290 | V61: 311 | W61: 286 | X61: 304 | Y61: 40 | Z61: 73 | AA61: 58 | AB61: 67 | AC61: 1 | AD61: 12913 | AE61: 14915 | AF61: 16128 | AG61: 4919 | AI61: 8028 | AJ61: 12114 | AK61: 10933 | AL61: 3483 | AM61: 18880 | AN61: 22506 | AO61: 21799 | AP61: 7709 | AQ61: 28918 | AR61: 26411 | AS61: 26377 | AT61: 9698 | AU61: 14787 | AV61: 11681 | AW61: 11107 | AX61: 3641 | AY61: 11311 | AZ61: 9335 | BA61: 8698 | BB61: 1709 | BC61: 2052 | BD61: 1627 | BE61: 1833 | BF61: 157 | BG61: 228 | BH61: 151 | BI61: 206 | BJ61: 7 | BK61: 84204 | BL61: 83825 | BM61: 80953 | BN61: 26404 | BO61: 275386
A63: EU | AI63: =AI50/SUM(AI50:AL50) -> 0.1541501976 | AJ63: =AJ50/SUM(AI50:AL50) -> 0.4416996047 | AK63: =AK50/SUM(AI50:AL50) -> 0.2954545455 | AL63: =AL50/SUM(AI50:AL50) -> 0.1086956522 | AM63: =AM50/SUM(AM50:AP50) -> 0.2040462428 | AN63: =AN50/SUM(AM50:AP50) -> 0.3786127168 | AO63: =AO50/SUM(AM50:AP50) -> 0.3 | AP63: =AP50/SUM(AM50:AP50) -> 0.1173410405 | AQ63: =AQ50/SUM(AQ50:AT50) -> 0.26905407 | AR63: =AR50/SUM(AQ50:AT50) -> 0.3392625751 | AS63: =AS50/SUM(AQ50:AT50) -> 0.2834256096 | AT63: =AT50/SUM(AQ50:AT50) -> 0.1082577453 | AU63: =AU50/SUM(AU50:AX50) -> 0.3396609187 | AV63: =AV50/SUM(AU50:AX50) -> 0.2990870888 | AW63: =AW50/SUM(AU50:AX50) -> 0.2798145196 | AX63: =AX50/SUM(AU50:AX50) -> 0.08143747283 | AY63: =AY50/SUM(AY50:BB50) -> 0.3709758551 | AZ63: =AZ50/SUM(AY50:BB50) -> 0.3091046278 | BA63: =BA50/SUM(AY50:BB50) -> 0.2738933602 | BB63: =BB50/SUM(AY50:BB50) -> 0.04602615694 | BC63: =BC50/SUM(BC50:BF50) -> 0.4128595601 | BD63: =BD50/SUM(BC50:BF50) -> 0.2732656514 | BE63: =BE50/SUM(BC50:BF50) -> 0.2969543147 | BF63: =BF50/SUM(BC50:BF50) -> 0.01692047377 | BG63: =BG50/$BO50 -> 0.008184363558 | BH63: =BH50/$BO50 -> 0.005420346041 | BI63: 0.007394644267 | BJ63: 0.0002512743198 | BK63: =BK50/$BO50 -> 0.3159954053 | BL63: =BL50/$BO50 -> 0.3222772633 | BM63: =BM50/$BO50 -> 0.2832220547 | BN63: 0.07850527676
A64: Race Stats | AI64: =AI51/SUM(AI51:AL51) -> 0.1546961326 | AJ64: =AJ51/SUM(AI51:AL51) -> 0.4281767956 | AK64: =AK51/SUM(AI51:AL51) -> 0.320441989 | AL64: =AL51/SUM(AI51:AL51) -> 0.09668508287 | AM64: =AM51/SUM(AM51:AP51) -> 0.1832797428 | AN64: =AN51/SUM(AM51:AP51) -> 0.4180064309 | AO64: =AO51/SUM(AM51:AP51) -> 0.2861736334 | AP64: =AP51/SUM(AM51:AP51) -> 0.1125401929 | AQ64: 0.2957746479 | AR64: 0.3124795283 | AS64: 0.2908614478 | AT64: 0.100884376 | AU64: =AU51/SUM(AU51:AX51) -> 0.3498694517 | AV64: =AV51/SUM(AU51:AX51) -> 0.2950391645 | AW64: =AW51/SUM(AU51:AX51) -> 0.2654482158 | AX64: =AX51/SUM(AU51:AX51) -> 0.08964316797 | AY64: =AY51/SUM(AY51:BB51) -> 0.383745287 | AZ64: =AZ51/SUM(AY51:BB51) -> 0.3003770423 | BA64: =BA51/SUM(AY51:BB51) -> 0.275659824 | BB64: =BB51/SUM(AY51:BB51) -> 0.04021784667 | BC64: =BC51/SUM(BC51:BF51) -> 0.3235294118 | BD64: =BD51/SUM(BC51:BF51) -> 0.2941176471 | BE64: =BE51/SUM(BC51:BF51) -> 0.3609625668 | BF64: =BF51/SUM(BC51:BF51) -> 0.02139037433 | BG64: 0 | BH64: 0 | BI64: 0 | BJ64: 0 | BK64: =BK51/$BO51 -> 0.3203605981 | BL64: 0.3159630607 | BM64: 0.2841908531 | BN64: 0.07948548813
B65: Bronze | F65: Silver | J65: Gold | N65: Platinum | R65: Diamond | V65: Master | Z65: Grandmaster | AD65: Totals | AI65: 0.173374613 | AJ65: 0.4148606811 | AK65: 0.306501548 | AL65: 0.1052631579 | AM65: 0.2119487909 | AN65: 0.3954480797 | AO65: 0.2916073969 | AP65: 0.1009957326 | AQ65: 0.2923898531 | AR65: 0.3134178905 | AS65: 0.2877169559 | AT65: 0.1064753004 | AU65: 0.379787725 | AV65: 0.2741116751 | AW65: 0.2584217813 | AX65: 0.08767881864 | AY65: 0.3695219124 | AZ65: 0.3172310757 | BA65: 0.2589641434 | BB65: 0.05428286853 | BC65: 0.3948126801 | BD65: 0.2766570605 | BE65: 0.2997118156 | BF65: 0.0288184438 | BG65: 0 | BH65: 0 | BI65: 0 | BJ65: 0 | BK65: =BK52/$BO52 -> 0.3257256554 | BL65: 0.3134363296 | BM65: 0.2750468165 | BN65: 0.0857911985
A66: Weeks Remaining | B66: Z | C66: T | D66: P | E66: R | F66: Z | G66: T | H66: P | I66: R | J66: Z | K66: T | L66: P | M66: R | N66: Z | O66: T | P66: P | Q66: R | R66: Z | S66: T | T66: P | U66: R | V66: Z | W66: T | X66: P | Y66: R | Z66: Z | AA66: T | AB66: P | AC66: R | AD66: Z | AE66: T | AF66: P | AG66: R | AI66: 0.1789772727 | AJ66: 0.4204545455 | AK66: 0.2982954545 | AL66: 0.1022727273 | AM66: 0.2253012048 | AN66: 0.3325301205 | AO66: 0.3421686747 | AP66: 0.1 | AQ66: 0.291740413 | AR66: 0.3041297935 | AS66: 0.3008849558 | AT66: 0.1032448378 | AU66: 0.3658430863 | AV66: 0.2895535327 | AW66: 0.2561768531 | AX66: 0.08842652796 | AY66: 0.3739218671 | AZ66: 0.3049213597 | BA66: 0.2714358194 | BB66: 0.04972095383 | BC66: 0.3526448363 | BD66: 0.274559194 | BE66: 0.3375314861 | BF66: 0.03526448363 | BG66: 0 | BH66: 0 | BI66: 0 | BJ66: 0 | BK66: =BK53/$BO53 -> 0.3201038175 | BL66: 0.3063696334 | BM66: 0.2886341516 | BN66: 0.08489239753
A67: 1 | B67: 56 | C67: 164 | D67: 118 | E67: 33 | F67: 147 | G67: 291 | H67: 214 | I67: 68 | J67: 905 | K67: 1196 | L67: 808 | M67: 319 | N67: 1028 | O67: 839 | P67: 747 | Q67: 187 | R67: 1391 | S67: 1115 | T67: 928 | U67: 132 | V67: 258 | W67: 156 | X67: 190 | Y67: 4 | Z67: 79 | AA67: 46 | AB67: 66 | AC67: 3 | AD67: =B67+F67+J67+N67+R67+V67+Z67 -> 3864 | AE67: =C67+G67+K67+O67+S67+W67+AA67 -> 3807 | AF67: 3071 | AG67: 746 | AI67: 0.1568627451 | AJ67: 0.4044117647 | AK67: 0.3137254902 | AL67: 0.125 | AM67: 0.2244701349 | AN67: 0.338150289 | AO67: 0.3420038536 | AP67: 0.09537572254 | AQ67: 0.3110423608 | AR67: 0.2915278439 | AS67: 0.2920038077 | AT67: 0.1054259876 | AU67: 0.3694968553 | AV67: 0.2688679245 | AW67: 0.2767295597 | AX67: 0.08490566038 | AY67: 0.3807728558 | AZ67: 0.2818096136 | BA67: 0.2917059378 | BB67: 0.04571159284 | BC67: 0.3438202247 | BD67: 0.2943820225 | BE67: 0.3415730337 | BF67: 0.0202247191 | BG67: 0 | BH67: 0 | BI67: 0 | BJ67: 0 | BK67: =BK54/$BO54 -> 0.3257737708 | BL67: 0.293149921 | BM67: 0.2960312297 | BN67: 0.08504507854
A68: 2 | B68: 23 | C68: 53 | D68: 48 | E68: 8 | F68: 40 | G68: 101 | H68: 73 | I68: 28 | J68: 423 | K68: 426 | L68: 361 | M68: 125 | N68: 375 | O68: 307 | P68: 263 | Q68: 81 | R68: 457 | S68: 349 | T68: 297 | U68: 40 | V68: 62 | W68: 56 | X68: 76 | Y68: 4 | AD68: =B68+F68+J68+N68+R68+V68+Z68 -> 1380 | AE68: 1292 | AF68: 1118 | AG68: 286 | AI68: 0.2053231939 | AJ68: 0.3745247148 | AK68: 0.3231939163 | AL68: 0.0969581749 | AM68: 0.2283861671 | AN68: 0.3494236311 | AO68: 0.3249279539 | AP68: 0.09726224784 | AQ68: 0.3184850863 | AR68: 0.2947409733 | AS68: 0.2839481947 | AT68: 0.1028257457 | AU68: 0.3841463415 | AV68: 0.2794715447 | AW68: 0.2489837398 | AX68: 0.08739837398 | AY68: 0.3759071118 | AZ68: 0.2844702467 | BA68: 0.2820512821 | BB68: 0.05757135946 | BC68: 0.3288288288 | BD68: 0.3153153153 | BE68: 0.3355855856 | BF68: 0.02027027027 | BG68: 0 | BH68: 0 | BI68: 0 | BJ68: 0 | BK68: =BK55/$BO55 -> 0.3291108795 | BL68: 0.2996071514 | BM68: 0.2834121703 | BN68: 0.08786979877
A69: 3 | B69: 27 | C69: 57 | D69: 54 | E69: 14 | F69: 60 | G69: 115 | H69: 81 | I69: 26 | J69: 410 | K69: 415 | L69: 358 | M69: 112 | N69: 393 | O69: 268 | P69: 227 | Q69: 79 | R69: 342 | S69: 288 | T69: 245 | U69: 53 | V69: 57 | W69: 37 | X69: 45 | Y69: 3 | AD69: 1289 | AE69: 1180 | AF69: 1010 | AG69: 287 | AI69: 0.22696011 | AJ69: 0.3645116919 | AK69: 0.3342503439 | AL69: 0.0742778542 | AM69: 0.2334085779 | AN69: 0.3422121896 | AO69: 0.3223476298 | AP69: 0.1020316027 | AQ69: 0.3199131064 | AR69: 0.2871832006 | AS69: 0.290224475 | AT69: 0.102679218 | AU69: 0.3822301729 | AV69: 0.2790697674 | AW69: 0.2498509243 | AX69: 0.08884913536 | AY69: 0.358727501 | AZ69: 0.308078694 | BA69: 0.2720803684 | BB69: 0.06111343658 | BC69: 0.4234800839 | BD69: 0.2368972746 | BE69: 0.3060796646 | BF69: 0.03354297694 | BG69: 0 | BH69: 0 | BI69: 0 | BJ69: 0 | BK69: =BK56/$BO56 -> 0.3256363976 | BL69: 0.2981888343 | BM69: 0.2859899172 | BN69: 0.09018485094
A70: 4 | B70: 22 | C70: 66 | D70: 30 | E70: 11 | F70: 75 | G70: 97 | H70: 101 | I70: 25 | J70: 419 | K70: 456 | L70: 403 | M70: 150 | N70: 391 | O70: 303 | P70: 256 | Q70: 75 | R70: 348 | S70: 278 | T70: 224 | U70: 36 | V70: 71 | W70: 51 | X70: 64 | Y70: 4 | AD70: 1326 | AE70: 1251 | AF70: 1078 | AG70: 301 | AI70: 0.1870967742 | AJ70: 0.4056451613 | AK70: 0.314516129 | AL70: 0.09274193548 | AM70: 0.2544589774 | AN70: 0.3165279429 | AO70: 0.3246135553 | AP70: 0.1043995244 | AQ70: 0.3222753537 | AR70: 0.2820282925 | AS70: 0.290097629 | AT70: 0.1055987248 | AU70: 0.3582815455 | AV70: 0.2758713861 | AW70: 0.2699270467 | AX70: 0.09592002162 | AY70: 0.3556016598 | AZ70: 0.2937759336 | BA70: 0.2809128631 | BB70: 0.06970954357 | BC70: 0.3517495396 | BD70: 0.3443830571 | BE70: 0.2744014733 | BF70: 0.02946593002 | BG70: 0 | BH70: 0 | BI70: 0 | BJ70: 0 | BK70: =BK57/$BO57 -> 0.3121922573 | BL70: 0.2972850883 | BM70: 0.29326467 | BN70: 0.09725798437
A71: 5 | B71: 24 | C71: 66 | D71: 49 | E71: 21 | F71: 86 | G71: 128 | H71: 148 | I71: 42 | J71: 525 | K71: 493 | L71: 479 | M71: 169 | N71: 430 | O71: 287 | P71: 322 | Q71: 94 | R71: 389 | S71: 286 | T71: 287 | U71: 45 | V71: 75 | W71: 68 | X71: 79 | Y71: 1 | AD71: 1529 | AE71: 1328 | AF71: 1364 | AG71: 372 | AI71: 0.2278923453 | AJ71: 0.3484795526 | AK71: 0.3446347431 | AL71: 0.07899335897 | AM71: 0.2724914392 | AN71: 0.3098474629 | AO71: 0.3097436962 | AP71: 0.1079174017 | AQ71: 0.3320150017 | AR71: 0.2709853392 | AS71: 0.2877599727 | AT71: 0.1092396863 | AU71: 0.3694090382 | AV71: 0.2787949015 | AW71: 0.2648899189 | AX71: 0.08690614137 | AY71: 0.3513513514 | AZ71: 0.2906384646 | BA71: 0.303564434 | BB71: 0.0544457501 | BC71: 0.3055028463 | BD71: 0.3149905123 | BE71: 0.3548387097 | BF71: 0.02466793169 | BG71: 0 | BH71: 0 | BI71: 0 | BJ71: 0 | BK71: =BK58/$BO58 -> 0.3124891487 | BL71: 0.2913363042 | BM71: 0.2979339082 | BN71: 0.09824063893
A72: 6 | B72: 37 | C72: 88 | D72: 66 | E72: 12 | F72: 107 | G72: 183 | H72: 153 | I72: 48 | J72: 687 | K72: 634 | L72: 607 | M72: 188 | N72: 514 | O72: 347 | P72: 344 | Q72: 105 | R72: 355 | S72: 275 | T72: 269 | U72: 49 | V72: 64 | W72: 59 | X72: 80 | Y72: 2 | AD72: 1764 | AE72: 1586 | AF72: 1519 | AG72: 404 | AI72: 0.2469033856 | AJ72: 0.3354960481 | AK72: 0.3140851716 | AL72: 0.1035153946 | AM72: 0.2751411433 | AN72: 0.3071630205 | AO72: 0.3022230064 | AP72: 0.1154728299 | AQ72: 0.3341060794 | AR72: 0.2728326472 | AS72: 0.2840641113 | AT72: 0.1089971622 | AU72: 0.3502059253 | AV72: 0.2784641956 | AW72: 0.2797927461 | AX72: 0.09153713299 | AY72: 0.3483290488 | AZ72: 0.2971722365 | BA72: 0.287403599 | BB72: 0.06709511568 | BC72: 0.3422818792 | BD72: 0.2765100671 | BE72: 0.344966443 | BF72: 0.03624161074 | BG72: =BG59/$BO59 -> 0 | BH72: 0 | BI72: 0 | BJ72: 0 | BK72: =BK59/$BO59 -> 0.2966543004 | BL72: 0.2997175045 | BM72: 0.297142144 | BN72: 0.1064860511
A73: 7 | B73: 68 | C73: 101 | D73: 74 | E73: 18 | F73: 182 | G73: 301 | H73: 239 | I73: 65 | J73: 973 | K73: 837 | L73: 830 | M73: 269 | N73: 627 | O73: 442 | P73: 391 | Q73: 126 | R73: 402 | S73: 346 | T73: 291 | U73: 63 | V73: 103 | W73: 50 | X73: 59 | Y73: 4 | AD73: 2355 | AE73: 2077 | AF73: 1884 | AG73: 545 | AI73: 0.2338404983 | AJ73: 0.3487184724 | AK73: 0.3136934545 | AL73: 0.1037475748 | AM73: 0.2725582036 | AN73: 0.3223584516 | AO73: 0.3075492492 | AP73: 0.09753409561 | AQ73: 0.2998278374 | AR73: 0.300092703 | AS73: 0.3024764932 | AT73: 0.09760296649 | AU73: 0.3365079365 | AV73: 0.2895238095 | AW73: 0.2825396825 | AX73: 0.09142857143 | AY73: 0.3182515337 | AZ73: 0.3021472393 | BA73: 0.2952453988 | BB73: 0.08435582822 | BC73: 0.3085106383 | BD73: 0.2446808511 | BE73: 0.3670212766 | BF73: 0.07978723404 | BG73: =BG60/$BO60 -> 0 | BH73: 0 | BI73: 0 | BJ73: 0 | BK73: =BK60/$BO60 -> 0.275147929 | BL73: 0.3208689459 | BM73: 0.3058568924 | BN73: 0.09812623274
A74: 8 | B74: 80 | C74: 193 | D74: 106 | E74: 38 | F74: 393 | G74: 502 | H74: 441 | I74: 136 | J74: 1379 | K74: 1180 | L74: 1152 | M74: 419 | N74: 619 | O74: 448 | P74: 470 | Q74: 161 | R74: 421 | S74: 337 | T74: 306 | U74: 85 | V74: 79 | W74: 79 | X74: 65 | Y74: 6 | AD74: 2971 | AE74: 2739 | AF74: 2540 | AG74: 845 | AI74: 0.2323051102 | AJ74: 0.3505411193 | AK74: 0.3163666879 | AL74: 0.1007870826 | AM74: 0.2663130871 | AN74: 0.3174598697 | AO74: 0.3074872345 | AP74: 0.1087398087 | AQ74: 0.316375651 | AR74: 0.2889479673 | AS74: 0.2885759923 | AT74: 0.1061003895 | AU74: 0.3587684394 | AV74: 0.2834093556 | AW74: 0.2694827252 | AX74: 0.08833947981 | AY74: 0.3642482208 | AZ74: 0.3006150774 | BA74: 0.2801017615 | BB74: 0.05503494026 | BC74: 0.3619686012 | BD74: 0.2869994708 | BE74: 0.3233374493 | BF74: 0.02769447874 | BG74: 0.0008279287981 | BH74: 0.0005483212654 | BI74: 0.0007480409316 | BJ74: 2.541886661e-05 | BK74: =BK61/$BO61 -> 0.3057671777 | BL74: 0.3043909276 | BM74: 0.2939619298 | BN74: 0.09587996485
A75: 9 | B75: 220 | C75: 339 | D75: 309 | E75: 70 | F75: 844 | G75: 1039 | H75: 963 | I75: 320 | J75: 2054 | K75: 1676 | L75: 1765 | M75: 615 | N75: 735 | O75: 519 | P75: 499 | Q75: 157 | R75: 400 | S75: 306 | T75: 360 | U75: 52 | V75: 60 | W75: 76 | X75: 87 | Y75: 3 | AD75: 4313 | AE75: 3955 | AF75: 3983 | AG75: 1217
A76: 10 | B76: 957 | C76: 1330 | D76: 1207 | E76: 321 | F76: 3235 | G76: 3512 | H76: 3477 | I76: 1121 | J76: 3812 | K76: 2948 | L76: 3160 | M76: 1144 | N76: 1044 | O76: 793 | P76: 832 | Q76: 237 | R76: 548 | S76: 448 | T76: 477 | U76: 93 | V76: 96 | W76: 68 | X76: 107 | Y76: 4 | AD76: 9692 | AE76: 9099 | AF76: 9260 | AG76: 2920
A77: 11 | B77: 1429 | C77: 2146 | D77: 1830 | E77: 612 | F77: 2968 | G77: 3484 | H77: 3213 | I77: 1037 | J77: 1775 | K77: 1724 | L77: 1728 | M77: 568 | N77: 830 | O77: 700 | P77: 682 | Q77: 220 | R77: 347 | S77: 307 | T77: 296 | U77: 86 | V77: 38 | W77: 27 | X77: 38 | Y77: 10 | AD77: 7387 | AE77: 8388 | AF77: 7787 | AG77: 2533
A78: Totals | B78: =SUM(B67:B77) -> 2943 | C78: =SUM(C67:C77) -> 4603 | D78: 3891 | E78: 1158 | F78: 8137 | G78: 9753 | H78: 9103 | I78: 2916 | J78: 13362 | K78: 11985 | L78: 11651 | M78: 4078 | N78: 6986 | O78: 5253 | P78: 5033 | Q78: 1522 | R78: 5400 | S78: 4335 | T78: 3980 | U78: 734 | V78: 963 | W78: 727 | X78: 890 | Y78: 45 | Z78: 79 | AA78: 46 | AB78: 66 | AC78: 3 | AD78: 37870 | AE78: 36702 | AF78: 34614 | AG78: 10456
A80: AM
A81: Race Stats
B82: Bronze | F82: Silver | J82: Gold | N82: Platinum | R82: Diamond | V82: Master | Z82: Grandmaster | AD82: Totals
A83: Weeks Remaining | B83: Z | C83: T | D83: P | E83: R | F83: Z | G83: T | H83: P | I83: R | J83: Z | K83: T | L83: P | M83: R | N83: Z | O83: T | P83: P | Q83: R | R83: Z | S83: T | T83: P | U83: R | V83: Z | W83: T | X83: P | Y83: R | Z83: Z | AA83: T | AB83: P | AC83: R | AD83: Z | AE83: T | AF83: P | AG83: R
A84: 1 | B84: 61 | C84: 201 | D84: 107 | E84: 52 | F84: 128 | G84: 250 | H84: 148 | I84: 86 | J84: 909 | K84: 1074 | L84: 827 | M84: 325 | N84: 840 | O84: 741 | P84: 593 | Q84: 208 | R84: 1026 | S84: 836 | T84: 724 | U84: 133 | V84: 162 | W84: 97 | X84: 108 | Y84: 7 | Z84: 76 | AA84: 47 | AB84: 73 | AC84: 3 | AD84: =B84+F84+J84+N84+R84+V84+Z84 -> 3202 | AE84: =C84+G84+K84+O84+S84+W84+AA84 -> 3246 | AF84: =D84+H84+L84+P84+T84+X84+AB84 -> 2580 | AG84: =E84+I84+M84+Q84+U84+Y84+AC84 -> 814
A85: 2 | B85: 24 | C85: 73 | D85: 44 | E85: 20 | F85: 52 | G85: 109 | H85: 59 | I85: 26 | J85: 351 | K85: 380 | L85: 338 | M85: 119 | N85: 300 | O85: 249 | P85: 204 | Q85: 81 | R85: 343 | S85: 266 | T85: 251 | U85: 42 | V85: 38 | W85: 37 | X85: 39 | Y85: 3 | AD85: =B85+F85+J85+N85+R85+V85+Z85 -> 1108 | AE85: 1114 | AF85: 935 | AG85: 291
A86: 3 | B86: 21 | C86: 50 | D86: 28 | E86: 15 | F86: 63 | G86: 98 | H86: 71 | I86: 25 | J86: 338 | K86: 370 | L86: 297 | M86: 134 | N86: 331 | O86: 218 | P86: 206 | Q86: 69 | R86: 300 | S86: 253 | T86: 188 | U86: 43 | V86: 62 | W86: 44 | X86: 42 | Y86: 7 | AD86: 1115 | AE86: 1033 | AF86: 832 | AG86: 293
A87: 4 | B87: 28 | C87: 54 | D87: 53 | E87: 19 | F87: 79 | G87: 112 | H87: 100 | I87: 35 | J87: 415 | K87: 402 | L87: 397 | M87: 140 | N87: 353 | O87: 267 | P87: 235 | Q87: 88 | R87: 293 | S87: 231 | T87: 222 | U87: 46 | V87: 54 | W87: 41 | X87: 46 | Y87: 7 | AD87: 1222 | AE87: 1107 | AF87: 1053 | AG87: 335
A88: 5 | B88: 29 | C88: 65 | D88: 49 | E88: 19 | F88: 95 | G88: 144 | H88: 124 | I88: 35 | J88: 586 | K88: 527 | L88: 489 | M88: 190 | N88: 387 | O88: 296 | P88: 258 | Q88: 91 | R88: 335 | S88: 242 | T88: 245 | U88: 35 | V88: 60 | W88: 49 | X88: 59 | Y88: 4 | AD88: 1492 | AE88: 1323 | AF88: 1224 | AG88: 374
A89: 6 | B89: 51 | C89: 72 | D89: 60 | E89: 25 | F89: 139 | G89: 190 | H89: 167 | I89: 57 | J89: 699 | K89: 630 | L89: 568 | M89: 239 | N89: 491 | O89: 365 | P89: 287 | Q89: 117 | R89: 326 | S89: 232 | T89: 235 | U89: 54 | V89: 55 | W89: 59 | X89: 48 | Y89: 2 | AD89: 1761 | AE89: 1548 | AF89: 1365 | AG89: 494
A90: 7 | B90: 58 | C90: 103 | D90: 97 | E90: 22 | F90: 205 | G90: 286 | H90: 248 | I90: 100 | J90: 913 | K90: 811 | L90: 820 | M90: 329 | N90: 535 | O90: 378 | P90: 339 | Q90: 137 | R90: 355 | S90: 300 | T90: 255 | U90: 58 | V90: 69 | W90: 43 | X90: 63 | Y90: 7 | AD90: 2135 | AE90: 1921 | AF90: 1822 | AG90: 653
A91: 8 | B91: 91 | C91: 211 | D91: 176 | E91: 51 | F91: 468 | G91: 570 | H91: 578 | I91: 186 | J91: 1448 | K91: 1240 | L91: 1278 | M91: 481 | N91: 576 | O91: 445 | P91: 410 | Q91: 160 | R91: 355 | S91: 276 | T91: 280 | U91: 62 | V91: 81 | W91: 77 | X91: 65 | Y91: 6 | AD91: 3019 | AE91: 2819 | AF91: 2787 | AG91: 946
A92: 9 | B92: 295 | C92: 465 | D92: 442 | E92: 104 | F92: 1318 | G92: 1354 | H92: 1357 | I92: 538 | J92: 2328 | K92: 1822 | L92: 1879 | M92: 788 | N92: 725 | O92: 524 | P92: 508 | Q92: 170 | R92: 413 | S92: 316 | T92: 328 | U92: 69 | V92: 75 | W92: 69 | X92: 61 | Y92: 9 | AD92: 5154 | AE92: 4550 | AF92: 4575 | AG92: 1678
A93: 10 | B93: 2475 | C93: 3285 | D93: 3024 | E93: 1117 | F93: 4835 | G93: 5373 | H93: 5171 | I93: 2193 | J93: 3780 | K93: 3153 | L93: 3183 | M93: 1295 | N93: 1321 | O93: 1071 | P93: 1031 | Q93: 383 | R93: 680 | S93: 567 | T93: 521 | U93: 143 | V93: 122 | W93: 98 | X93: 108 | Y93: 20 | AD93: 13213 | AE93: 13547 | AF93: 13038 | AG93: 5151
A95: Totals | B95: =SUM(B84:B93) -> 3133 | C95: =SUM(C84:C93) -> 4579 | D95: 4080 | E95: 1444 | F95: 7382 | G95: 8486 | H95: 8023 | I95: 3281 | J95: 11767 | K95: 10409 | L95: 10076 | M95: 4040 | N95: 5859 | O95: 4554 | P95: 4071 | Q95: 1504 | R95: 4426 | S95: 3519 | T95: 3249 | U95: 685 | V95: 778 | W95: 614 | X95: 639 | Y95: 72 | Z95: 76 | AA95: 47 | AB95: 73 | AC95: 3 | AD95: 33421 | AE95: 32208 | AF95: 30211 | AG95: 11029
A99: KR
A100: Most Recent Games
B101: Bronze | D101: Silver | F101: Gold | H101: Platinum | J101: Diamond | L101: Master | N101: Grandmaster | P101: Totals | S101: Bronze | U101: Silver | W101: Gold | Y101: Platinum | AA101: Diamond | AC101: Master | AE101: Grandmaster | AG101: Totals
A102: Weeks Remaining | B102: Last Week | C102: Last Month | D102: Last Week | E102: Last Month | F102: Last Week | G102: Last Month | H102: Last Week | I102: Last Month | J102: Last Week | K102: Last Month | L102: Last Week | M102: Last Month | N102: Last Week | O102: Last Month | P102: Last Week | Q102: Last Month | S102: Last Week | T102: Last Month | U102: Last Week | V102: Last Month | W102: Last Week | X102: Last Month | Y102: Last Week | Z102: Last Month | AA102: Last Week | AB102: Last Month | AC102: Last Week | AD102: Last Month | AE102: Last Week | AF102: Last Month | AG102: Last Week | AH102: Last Month
A103: 1 | B103: 218 | C103: 2 | D103: 389 | E103: 9 | F103: 2095 | G103: 31 | H103: 1695 | I103: 23 | J103: 1646 | K103: 21 | L103: 199 | M103: 1 | N103: 197 | O103: 2 | P103: =B103+D103+F103+H103+J103+L103+N103 -> 6439 | Q103: =C103+E103+G103+I103+K103+M103+O103 -> 89 | S103: =B103+B121+B139 -> 1008 | T103: =C103+C121+C139 -> 4 | U103: 1721 | V103: 9 | W103: 8451 | X103: 38 | Y103: 6874 | Z103: 27 | AA103: 7930 | AB103: 22 | AC103: 1181 | AD103: 1 | AE103: 588 | AF103: 4 | AG103: 27753 | AH103: 105
A104: 2 | B104: 56 | C104: 13 | D104: 91 | E104: 43 | F104: 353 | G104: 177 | H104: 280 | I104: 158 | J104: 193 | K104: 149 | L104: 45 | M104: 14 | P104: =B104+D104+F104+H104+J104+L104+N104 -> 1018 | Q104: 554 | S104: =B104+B122+B140 -> 286 | T104: 76 | U104: 487 | V104: 135 | W104: 2315 | X104: 738 | Y104: 1662 | Z104: 636 | AA104: 1569 | AB104: 818 | AC104: 302 | AD104: 72 | AE104: 0 | AF104: 0 | AG104: 6621 | AH104: 2475
A105: 3 | B105: 31 | C105: 26 | D105: 112 | E105: 52 | F105: 359 | G105: 203 | H105: 225 | I105: 151 | J105: 154 | K105: 142 | L105: 34 | M105: 16 | P105: 915 | Q105: 590 | S105: =B105+B123+B141 -> 209 | T105: 114 | U105: 479 | V105: 224 | W105: 1938 | X105: 1058 | Y105: 1293 | Z105: 874 | AA105: 1101 | AB105: 907 | AC105: 248 | AD105: 99 | AE105: 0 | AF105: 0 | AG105: 5268 | AH105: 3276
A106: 4 | B106: 43 | C106: 26 | D106: 129 | E106: 77 | F106: 352 | G106: 256 | H106: 192 | I106: 147 | J106: 139 | K106: 154 | L106: 37 | M106: 22 | P106: 892 | Q106: 682 | S106: =B106+B124+B142 -> 207 | T106: 145 | U106: 498 | V106: 330 | W106: 2015 | X106: 1375 | Y106: 1236 | Z106: 1071 | AA106: 964 | AB106: 1006 | AC106: 273 | AD106: 124 | AE106: 0 | AF106: 0 | AG106: 5193 | AH106: 4051
A107: 5 | B107: 41 | C107: 37 | D107: 145 | E107: 75 | F107: 421 | G107: 260 | H107: 173 | I107: 174 | J107: 100 | K107: 114 | L107: 33 | M107: 17 | P107: 913 | Q107: 677 | S107: =B107+B125+B143 -> 205 | T107: 176 | U107: 628 | V107: 371 | W107: 2326 | X107: 1693 | Y107: 1290 | Z107: 1120 | AA107: 935 | AB107: 1002 | AC107: 291 | AD107: 143 | AE107: 0 | AF107: 0 | AG107: 5675 | AH107: 4505
A108: 6 | B108: 50 | C108: 39 | D108: 207 | E108: 95 | F108: 442 | G108: 283 | H108: 170 | I108: 135 | J108: 107 | K108: 109 | L108: 37 | M108: 32 | P108: 1013 | Q108: 693 | S108: =B108+B126+B144 -> 222 | T108: 206 | U108: 765 | V108: 449 | W108: 2606 | X108: 1815 | Y108: 1286 | Z108: 1115 | AA108: 845 | AB108: 769 | AC108: 218 | AD108: 183 | AE108: 0 | AF108: 0 | AG108: 5942 | AH108: 4537
A109: 7 | B109: 60 | C109: 70 | D109: 263 | E109: 196 | F109: 531 | G109: 405 | H109: 156 | I109: 158 | J109: 121 | K109: 102 | L109: 40 | M109: 27 | P109: 1171 | Q109: 958 | S109: =B109+B127+B145 -> 275 | T109: 247 | U109: 1001 | V109: 801 | W109: 3137 | X109: 2532 | Y109: 1289 | Z109: 1225 | AA109: 843 | AB109: 831 | AC109: 198 | AD109: 194 | AE109: 0 | AF109: 0 | AG109: 6743 | AH109: 5830
A110: 8 | B110: 91 | C110: 72 | D110: 365 | E110: 295 | F110: 610 | G110: 567 | H110: 152 | I110: 169 | J110: 88 | K110: 105 | L110: 37 | M110: 27 | P110: 1343 | Q110: 1235 | S110: =B110+B128+B146 -> 375 | T110: 338 | U110: 1536 | V110: 1329 | W110: 4028 | X110: 3853 | Y110: 1279 | Z110: 1328 | AA110: 696 | AB110: 882 | AC110: 206 | AD110: 198 | AE110: 0 | AF110: 0 | AG110: 8120 | AH110: 7928
A111: 9 | B111: 159 | C111: 149 | D111: 638 | E111: 690 | F111: 579 | G111: 769 | H111: 150 | I111: 204 | J111: 92 | K111: 119 | L111: 38 | M111: 28 | P111: 1656 | Q111: 1959 | S111: =B111+B129+B147 -> 624 | T111: 708 | U111: 2729 | V111: 3237 | W111: 4919 | X111: 5846 | Y111: 1281 | Z111: 1602 | AA111: 680 | AB111: 919 | AC111: 168 | AD111: 164 | AE111: 0 | AF111: 0 | AG111: 10401 | AH111: 12476
A112: 10 | B112: 442 | C112: 622 | D112: 1226 | E112: 2182 | F112: 647 | G112: 1099 | H112: 207 | I112: 338 | J112: 100 | K112: 140 | L112: 25 | M112: 45 | P112: 2647 | Q112: 4426 | S112: =B112+B130+B148 -> 2037 | T112: 3371 | U112: 7059 | V112: 12188 | W112: 6038 | X112: 10012 | Y112: 1706 | Z112: 2895 | AA112: 812 | AB112: 1237 | AC112: 157 | AD112: 209 | AE112: 0 | AF112: 0 | AG112: 17809 | AH112: 29912
A113: 11 | B113: 297 | C113: 719 | D113: 686 | E113: 1590 | F113: 374 | G113: 752 | H113: 164 | I113: 314 | J113: 41 | K113: 79 | L113: 19 | M113: 21 | P113: 1581 | Q113: 3475 | S113: =B113+B131+B149 -> 873 | T113: 1918 | U113: 2291 | V113: 5241 | W113: 1455 | X113: 3050 | Y113: 578 | Z113: 1330 | AA113: 218 | AB113: 412 | AC113: 37 | AD113: 42 | AE113: 0 | AF113: 0 | AG113: 5452 | AH113: 11993
A114: Totals | B114: =SUM(B103:B113) -> 1488 | C114: =SUM(C103:C113) -> 1775 | D114: 4251 | E114: 5304 | F114: 6763 | G114: 4802 | H114: 3564 | I114: 1971 | J114: 2781 | K114: 1234 | L114: 544 | M114: 250 | N114: 197 | O114: 2 | P114: 19588 | Q114: 15338 | S114: =B114+B132+B150 -> 6321 | T114: 7303 | U114: 19194 | V114: 24314 | W114: 39228 | X114: 32010 | Y114: 19774 | Z114: 13223 | AA114: 16593 | AB114: 8805 | AC114: 3279 | AD114: 1429 | AE114: 588 | AF114: 4 | AG114: 104977 | AH114: 87088
A115: At least 1 game in the last month | B115: =SUM(B114:C114) -> 3263 | D115: =SUM(D114:E114) -> 9555 | F115: =SUM(F114:G114) -> 11565 | H115: =SUM(H114:I114) -> 5535 | J115: =SUM(J114:K114) -> 4015 | L115: =SUM(L114:M114) -> 794 | N115: =SUM(N114:O114) -> 199 | P115: =SUM(P114:Q114) -> 34926
A117: EU
A118: Most Recent Games
B119: Bronze | D119: Silver | F119: Gold | H119: Platinum | J119: Diamond | L119: Master | N119: Grandmaster | P119: Totals
A120: Weeks Remaining | B120: Last Week | C120: Last Month | D120: Last Week | E120: Last Month | F120: Last Week | G120: Last Month | H120: Last Week | I120: Last Month | J120: Last Week | K120: Last Month | L120: Last Week | M120: Last Month | N120: Last Week | O120: Last Month | P120: Last Week | Q120: Last Month
A121: 1 | B121: 369 | C121: 2 | D121: 720 | F121: 3223 | G121: 5 | H121: 2798 | I121: 3 | J121: 3566 | L121: 608 | N121: 192 | O121: 2 | P121: =B121+D121+F121+H121+J121+L121+N121 -> 11476 | Q121: =C121+E121+G121+I121+K121+M121+O121 -> 12
A122: 2 | B122: 104 | C122: 28 | D122: 201 | E122: 41 | F122: 1032 | G122: 303 | H122: 749 | I122: 277 | J122: 772 | K122: 371 | L122: 162 | M122: 36 | P122: =B122+D122+F122+H122+J122+L122+N122 -> 3020 | Q122: 1056
A123: 3 | B123: 102 | C123: 50 | D123: 195 | E123: 87 | F123: 824 | G123: 471 | H123: 577 | I123: 390 | J123: 516 | K123: 412 | L123: 99 | M123: 43 | P123: 2313 | Q123: 1453
A124: 4 | B124: 76 | C124: 53 | D124: 177 | E124: 119 | F124: 882 | G124: 546 | H124: 558 | I124: 467 | J124: 441 | K124: 444 | L124: 135 | M124: 55 | P124: 2269 | Q124: 1684
A125: 5 | B125: 83 | C125: 67 | D125: 243 | E125: 155 | F125: 934 | G125: 685 | H125: 584 | I125: 501 | J125: 450 | K125: 487 | L125: 148 | M125: 69 | P125: 2442 | Q125: 1964
A126: 6 | B126: 77 | C126: 87 | D126: 252 | E126: 179 | F126: 1112 | G126: 755 | H126: 584 | I126: 496 | J126: 424 | K126: 319 | L126: 110 | M126: 75 | P126: 2559 | Q126: 1911
A127: 7 | B127: 109 | C127: 82 | D127: 364 | E127: 278 | F127: 1358 | G127: 1044 | H127: 613 | I127: 556 | J127: 400 | K127: 394 | L127: 94 | M127: 87 | P127: 2938 | Q127: 2441
A128: 8 | B128: 139 | C128: 114 | D128: 550 | E128: 466 | F128: 1687 | G128: 1570 | H128: 600 | I128: 599 | J128: 324 | K128: 425 | L128: 96 | M128: 76 | P128: 3396 | Q128: 3250
A129: 9 | B129: 213 | C129: 244 | D129: 893 | E129: 1028 | F129: 2133 | G129: 2387 | H129: 581 | I129: 672 | J129: 301 | K129: 392 | L129: 68 | M129: 66 | P129: 4189 | Q129: 4789
A130: 10 | B130: 549 | C130: 845 | D130: 2356 | E130: 3643 | F130: 2800 | G130: 4504 | H130: 664 | I130: 1131 | J130: 360 | K130: 490 | L130: 70 | M130: 62 | P130: 6799 | Q130: 10675
A131: 11 | B131: 576 | C131: 1199 | D131: 1605 | E131: 3651 | F131: 1081 | G131: 2298 | H131: 414 | I131: 1016 | J131: 177 | K131: 333 | L131: 18 | M131: 21 | P131: 3871 | Q131: 8518
A132: Totals | B132: =SUM(B121:B131) -> 2397 | C132: =SUM(C121:C131) -> 2771 | D132: 7556 | E132: 9647 | F132: 17066 | G132: 14568 | H132: 8722 | I132: 6108 | J132: 7731 | K132: 4067 | L132: 1608 | M132: 590 | N132: 192 | O132: 2 | P132: 45272 | Q132: 37753
A133: At least 1 game in the last month | B133: =SUM(B132:C132) -> 5168 | D133: =SUM(D132:E132) -> 17203 | F133: =SUM(F132:G132) -> 31634 | H133: =SUM(H132:I132) -> 14830 | J133: =SUM(J132:K132) -> 11798 | L133: =SUM(L132:M132) -> 2198 | N133: =SUM(N132:O132) -> 194 | P133: =SUM(P132:Q132) -> 83025
A135: AM
A136: Most Recent Games
B137: Bronze | D137: Silver | F137: Gold | H137: Platinum | J137: Diamond | L137: Master | N137: Grandmaster | P137: Totals
A138: Weeks Remaining | B138: Last Week | C138: Last Month | D138: Last Week | E138: Last Month | F138: Last Week | G138: Last Month | H138: Last Week | I138: Last Month | J138: Last Week | K138: Last Month | L138: Last Week | M138: Last Month | N138: Last Week | O138: Last Month | P138: Last Week | Q138: Last Month
A139: 1 | B139: 421 | D139: 612 | F139: 3133 | G139: 2 | H139: 2381 | I139: 1 | J139: 2718 | K139: 1 | L139: 374 | N139: 199 | P139: =B139+D139+F139+H139+J139+L139+N139 -> 9838 | Q139: =C139+E139+G139+I139+K139+M139+O139 -> 4
A140: 2 | B140: 126 | C140: 35 | D140: 195 | E140: 51 | F140: 930 | G140: 258 | H140: 633 | I140: 201 | J140: 604 | K140: 298 | L140: 95 | M140: 22 | P140: =B140+D140+F140+H140+J140+L140+N140 -> 2583 | Q140: 865
A141: 3 | B141: 76 | C141: 38 | D141: 172 | E141: 85 | F141: 755 | G141: 384 | H141: 491 | I141: 333 | J141: 431 | K141: 353 | L141: 115 | M141: 40 | P141: 2040 | Q141: 1233
A142: 4 | B142: 88 | C142: 66 | D142: 192 | E142: 134 | F142: 781 | G142: 573 | H142: 486 | I142: 457 | J142: 384 | K142: 408 | L142: 101 | M142: 47 | P142: 2032 | Q142: 1685
A143: 5 | B143: 81 | C143: 72 | D143: 240 | E143: 141 | F143: 971 | G143: 748 | H143: 533 | I143: 445 | J143: 385 | K143: 401 | L143: 110 | M143: 57 | P143: 2320 | Q143: 1864
A144: 6 | B144: 95 | C144: 80 | D144: 306 | E144: 175 | F144: 1052 | G144: 777 | H144: 532 | I144: 484 | J144: 314 | K144: 341 | L144: 71 | M144: 76 | P144: 2370 | Q144: 1933
A145: 7 | B145: 106 | C145: 95 | D145: 374 | E145: 327 | F145: 1248 | G145: 1083 | H145: 520 | I145: 511 | J145: 322 | K145: 335 | L145: 64 | M145: 80 | P145: 2634 | Q145: 2431
A146: 8 | B146: 145 | C146: 152 | D146: 621 | E146: 568 | F146: 1731 | G146: 1716 | H146: 527 | I146: 560 | J146: 284 | K146: 352 | L146: 73 | M146: 95 | P146: 3381 | Q146: 3443
A147: 9 | B147: 252 | C147: 315 | D147: 1198 | E147: 1519 | F147: 2207 | G147: 2690 | H147: 550 | I147: 726 | J147: 287 | K147: 408 | L147: 62 | M147: 70 | P147: 4556 | Q147: 5728
A148: 10 | B148: 1046 | C148: 1904 | D148: 3477 | E148: 6363 | F148: 2591 | G148: 4409 | H148: 835 | I148: 1426 | J148: 352 | K148: 607 | L148: 62 | M148: 102 | P148: 8363 | Q148: 14811
A150: Totals | B150: =SUM(B139:B148) -> 2436 | C150: =SUM(C139:C148) -> 2757 | D150: 7387 | E150: 9363 | F150: 15399 | G150: 12640 | H150: 7488 | I150: 5144 | J150: 6081 | K150: 3504 | L150: 1127 | M150: 589 | N150: 199 | O150: 0 | P150: 40117 | Q150: 33997

Sheet Summary - Teams
A1: KR | Q1: EU | AG1: AM
A2: 2v2 - Most Recent Games | Q2: 2v2 - Most Recent Games | AG2: 2v2 - Most Recent Games
B3: Bronze | D3: Silver | F3: Gold | H3: Platinum | J3: Diamond | L3: Master | N3: Totals | R3: Bronze | T3: Silver | V3: Gold | X3: Platinum | Z3: Diamond | AB3: Master | AD3: Totals | AH3: Bronze | AJ3: Silver | AL3: Gold | AN3: Platinum | AP3: Diamond | AR3: Master | AT3: Totals | AX3: Bronze | AZ3: Silver | BB3: Gold | BD3: Platinum | BF3: Diamond | BH3: Master | BJ3: Totals
A4: Category | B4: Last Week | C4: Last Month | D4: Last Week | E4: Last Month | F4: Last Week | G4: Last Month | H4: Last Week | I4: Last Month | J4: Last Week | K4: Last Month | L4: Last Week | M4: Last Month | N4: Last Week | O4: Last Month | Q4: Category | R4: Last Week | S4: Last Month | T4: Last Week | U4: Last Month | V4: Last Week | W4: Last Month | X4: Last Week | Y4: Last Month | Z4: Last Week | AA4: Last Month | AB4: Last Week | AC4: Last Month | AD4: Last Week | AE4: Last Month | AG4: Weeks Remaining | AH4: Last Week | AI4: Last Month | AJ4: Last Week | AK4: Last Month | AL4: Last Week | AM4: Last Month | AN4: Last Week | AO4: Last Month | AP4: Last Week | AQ4: Last Month | AR4: Last Week | AS4: Last Month | AT4: Last Week | AU4: Last Month | AX4: Last Week | AY4: Last Month | AZ4: Last Week | BA4: Last Month | BB4: Last Week | BC4: Last Month | BD4: Last Week | BE4: Last Month | BF4: Last Week | BG4: Last Month | BH4: Last Week | BI4: Last Month | BJ4: Last Week | BK4: Last Month
A5: Totals | B5: 817 | C5: 1550 | D5: 935 | E5: 1390 | F5: 877 | G5: 1090 | H5: 368 | I5: 343 | J5: 89 | K5: 106 | L5: 35 | M5: 22 | N5: 3121 | O5: 4501 | Q5: Totals | R5: 3596 | S5: 6264 | T5: 4434 | U5: 6022 | V5: 5054 | W5: 6208 | X5: 2146 | Y5: 2577 | Z5: 687 | AA5: 739 | AB5: 127 | AC5: 120 | AD5: 16044 | AE5: 21930 | AG5: Totals | AH5: 3267 | AI5: 5358 | AJ5: 3812 | AK5: 4948 | AL5: 4014 | AM5: 4883 | AN5: 1612 | AO5: 1892 | AP5: 460 | AQ5: 460 | AR5: 103 | AS5: 79 | AT5: =AH5+AJ5+AL5+AN5+AP5+AR5 -> 13268 | AU5: =AI5+AK5+AM5+AO5+AQ5+AS5 -> 17620 | AX5: =B5+R5+AH5 -> 7680 | AY5: =C5+S5+AI5 -> 13172 | AZ5: =D5+T5+AJ5 -> 9181 | BA5: =E5+U5+AK5 -> 12360 | BB5: =F5+V5+AL5 -> 9945 | BC5: =G5+W5+AM5 -> 12181 | BD5: =H5+X5+AN5 -> 4126 | BE5: =I5+Y5+AO5 -> 4812 | BF5: =J5+Z5+AP5 -> 1236 | BG5: =K5+AA5+AQ5 -> 1305 | BH5: =L5+AB5+AR5 -> 265 | BI5: =M5+AC5+AS5 -> 221 | BJ5: =N5+AD5+AT5 -> 32433 | BK5: =O5+AE5+AU5 -> 44051
A6: At least 1 game within the last month | B6: 2367 | D6: 2325 | F6: 1967 | H6: 711 | J6: 195 | L6: 57 | N6: 7622 | P6: 48875 | Q6: At least 1 game within the last month | R6: 9860 | T6: 10456 | V6: 11262 | X6: 4723 | Z6: 1426 | AB6: 247 | AD6: 37974 | AF6: 119642 | AG6: At least 1 game within the last month | AH6: =AH5+AI5 -> 8625 | AJ6: =AJ5+AK5 -> 8760 | AL6: =AL5+AM5 -> 8897 | AN6: =AN5+AO5 -> 3504 | AP6: =AP5+AQ5 -> 920 | AR6: =AR5+AS5 -> 182 | AT6: =AT5+AU5 -> 30888 | AV6: 106869 | AX6: =B6+R6+AH6 -> 20852 | AY6: 0 | AZ6: 21541 | BA6: 0 | BB6: 22126 | BC6: 0 | BD6: 8938 | BE6: 0 | BF6: 2541 | BG6: 0 | BH6: 486 | BI6: 0 | BJ6: 76484 | BK6: 0
B7: Avg Wins | C7: Avg Losses | D7: Avg Wins | E7: Avg Losses | F7: Avg Wins | G7: Avg Losses | H7: Avg Wins | I7: Avg Losses | J7: Avg Wins | K7: Avg Losses | L7: Avg Wins | M7: Avg Losses | N7: Avg Wins | O7: Avg Losses | P7: =N6/P6 -> 0.1559488491 | R7: Avg Wins | S7: Avg Losses | T7: Avg Wins | U7: Avg Losses | V7: Avg Wins | W7: Avg Losses | X7: Avg Wins | Y7: Avg Losses | Z7: Avg Wins | AA7: Avg Losses | AB7: Avg Wins | AC7: Avg Losses | AD7: Avg Wins | AE7: Avg Losses | AF7: =AD6/AF6 -> 0.3173969008 | AV7: =AT6/AV6 -> 0.2890267524
A8: Games Count | B8: 4.086611045 | C8: 5.094954311 | D8: 8.320688649 | E8: 7.419317187 | F8: 15.50919493 | G8: 12.47527585 | H8: 24.22222222 | I8: 17.69706499 | J8: 28.38576779 | K8: 18.86142322 | L8: 51.41791045 | M8: 20.67164179 | N8: 9.935224664 | O8: 8.601590685 | Q8: Games Count | R8: 3.993120638 | S8: 5.813908275 | T8: 8.19664254 | U8: 8.126999574 | V8: 12.49786794 | W8: 10.37944179 | X8: 15.55521425 | Y8: 11.28090923 | Z8: 24.3984375 | AA8: 16.671875 | AB8: 35.58176101 | AC8: 18.30188679 | AD8: 9.317194719 | AE8: 8.581551155
A9: Avg Score | B9: 95.11223679 | D9: 170.5698862 | F9: 270.9681242 | H9: 338.1572327 | J9: 366.3632959 | L9: 493.9253731 | N9: 178.7398327 | Q9: Avg Score | R9: 92.84411765 | T9: 171.8573688 | V9: 229.9243442 | X9: 250.1835356 | Z9: 365.7723214 | AB9: 428.8050314 | AD9: 176.0313201
A10: Total Team Count | B10: 5034 | D10: 3427 | F10: 2447 | H10: 954 | J10: 267 | L10: 67 | N10: 12196 | Q10: Total Team Count | R10: 20060 | T10: 16441 | V10: 15478 | X10: 6511 | Z10: 1792 | AB10: 318 | AD10: 60600 | AG10: Total Team Count | AH10: =COUNTIF('[1]2v2'!$E$1:$E$49071,'[1]Analysis - Team'!AH3:AI3) -> 0 | AJ10: =COUNTIF('[1]2v2'!$E$1:$E$49071,'[1]Analysis - Team'!AJ3:AK3) -> 0 | AL10: =COUNTIF('[1]2v2'!$E$1:$E$49071,'[1]Analysis - Team'!AL3:AM3) -> 0 | AN10: =COUNTIF('[1]2v2'!$E$1:$E$49071,'[1]Analysis - Team'!AN3:AO3) -> 0 | AP10: =COUNTIF('[1]2v2'!$E$1:$E$49071,'[1]Analysis - Team'!AP3:AQ3) -> 0 | AR10: =COUNTIF('[1]2v2'!$E$1:$E$49071,'[1]Analysis - Team'!AR3:AS3) -> 0
A14: 3v3 - Most Recent Games | Q14: 3v3 - Most Recent Games | AG14: 3v3 - Most Recent Games
B15: Bronze | D15: Silver | F15: Gold | H15: Platinum | J15: Diamond | L15: Master | N15: Totals | R15: Bronze | T15: Silver | V15: Gold | X15: Platinum | Z15: Diamond | AB15: Master | AD15: Totals | AH15: Bronze | AJ15: Silver | AL15: Gold | AN15: Platinum | AP15: Diamond | AR15: Master | AT15: Totals | AX15: Bronze | AZ15: Silver | BB15: Gold | BD15: Platinum | BF15: Diamond | BH15: Master | BJ15: Totals
A16: Category | B16: Last Week | C16: Last Month | D16: Last Week | E16: Last Month | F16: Last Week | G16: Last Month | H16: Last Week | I16: Last Month | J16: Last Week | K16: Last Month | L16: Last Week | M16: Last Month | N16: Last Week | O16: Last Month | Q16: Category | R16: Last Week | S16: Last Month | T16: Last Week | U16: Last Month | V16: Last Week | W16: Last Month | X16: Last Week | Y16: Last Month | Z16: Last Week | AA16: Last Month | AB16: Last Week | AC16: Last Month | AD16: Last Week | AE16: Last Month | AG16: Weeks Remaining | AH16: Last Week | AI16: Last Month | AJ16: Last Week | AK16: Last Month | AL16: Last Week | AM16: Last Month | AN16: Last Week | AO16: Last Month | AP16: Last Week | AQ16: Last Month | AR16: Last Week | AS16: Last Month | AT16: Last Week | AU16: Last Month | AX16: Last Week | AY16: Last Month | AZ16: Last Week | BA16: Last Month | BB16: Last Week | BC16: Last Month | BD16: Last Week | BE16: Last Month | BF16: Last Week | BG16: Last Month | BH16: Last Week | BI16: Last Month | BJ16: Last Week | BK16: Last Month
A17: Totals | B17: 244 | C17: 493 | D17: 397 | E17: 703 | F17: 366 | G17: 537 | H17: 117 | I17: 178 | J17: 28 | K17: 35 | L17: 10 | M17: 8 | N17: 1162 | O17: 1954 | Q17: Totals | R17: 1086 | S17: 2410 | T17: 1592 | U17: 3097 | V17: 1446 | W17: 2533 | X17: 430 | Y17: 702 | Z17: 96 | AA17: 131 | AB17: 15 | AC17: 21 | AD17: 4665 | AE17: 8894 | AG17: Totals | AH17: 1017 | AI17: 1971 | AJ17: 1491 | AK17: 2660 | AL17: 1328 | AM17: 1968 | AN17: 351 | AO17: 582 | AP17: 76 | AQ17: 116 | AR17: 16 | AS17: 18 | AT17: =AH17+AJ17+AL17+AN17+AP17+AR17 -> 4279 | AU17: =AI17+AK17+AM17+AO17+AQ17+AS17 -> 7315 | AX17: =B17+R17+AH17 -> 2347 | AY17: =C17+S17+AI17 -> 4874 | AZ17: =D17+T17+AJ17 -> 3480 | BA17: =E17+U17+AK17 -> 6460 | BB17: =F17+V17+AL17 -> 3140 | BC17: =G17+W17+AM17 -> 5038 | BD17: =H17+X17+AN17 -> 898 | BE17: =I17+Y17+AO17 -> 1462 | BF17: =J17+Z17+AP17 -> 200 | BG17: =K17+AA17+AQ17 -> 282 | BH17: =L17+AB17+AR17 -> 41 | BI17: =M17+AC17+AS17 -> 47 | BJ17: =N17+AD17+AT17 -> 10106 | BK17: =O17+AE17+AU17 -> 18163
A18: At least 1 game within the last month | B18: 737 | D18: 1100 | F18: 903 | H18: 295 | J18: 63 | L18: 18 | N18: 3116 | P18: =N18/P6 -> 0.0637544757 | Q18: At least 1 game within the last month | R18: 3496 | T18: 4689 | V18: 3979 | X18: 1132 | Z18: 227 | AB18: 36 | AD18: 13559 | AF18: =AD18/AF6 -> 0.1133297671 | AG18: At least 1 game within the last month | AH18: =AH17+AI17 -> 2988 | AJ18: =AJ17+AK17 -> 4151 | AL18: =AL17+AM17 -> 3296 | AN18: =AN17+AO17 -> 933 | AP18: =AP17+AQ17 -> 192 | AR18: =AR17+AS17 -> 34 | AT18: =AT17+AU17 -> 11594 | AV18: =AT18/AV6 -> 0.1084879619 | AX18: =B18+R18+AH18 -> 7221 | AY18: 0 | AZ18: 9940 | BA18: 0 | BB18: 8178 | BC18: 0 | BD18: 2360 | BE18: 0 | BF18: 482 | BG18: 0 | BH18: 88 | BI18: 0 | BJ18: 28269 | BK18: 0
B19: Avg Wins | C19: Avg Losses | D19: Avg Wins | E19: Avg Losses | F19: Avg Wins | G19: Avg Losses | H19: Avg Wins | I19: Avg Losses | J19: Avg Wins | K19: Avg Losses | L19: Avg Wins | M19: Avg Losses | N19: Avg Wins | O19: Avg Losses | R19: Avg Wins | S19: Avg Losses | T19: Avg Wins | U19: Avg Losses | V19: Avg Wins | W19: Avg Losses | X19: Avg Wins | Y19: Avg Losses | Z19: Avg Wins | AA19: Avg Losses | AB19: Avg Wins | AC19: Avg Losses | AD19: Avg Wins | AE19: Avg Losses
A20: Games Count | B20: 3.598246519 | C20: 4.059824652 | D20: 6.406105991 | E20: 5.300691244 | F20: 11.88672566 | G20: 8.269026549 | H20: 12.8 | I20: 6.802040816 | J20: 21.26190476 | K20: 8.833333333 | L20: 48.76190476 | M20: 15.33333333 | N20: 8.158703704 | O20: 5.962962963 | Q20: Games Count | R20: 2.861118106 | S20: 4.040292118 | T20: 5.174546384 | U20: 4.838998211 | V20: 8.404376445 | W20: 6.11492617 | X20: 10.72335329 | Y20: 5.917964072 | Z20: 14.20625 | AA20: 6.7 | AB20: 37 | AC20: 13.43181818 | AD20: 6.22708449 | AE20: 5.241343978
A21: Avg Score | B21: 73.05879319 | D21: 107.3312212 | F21: 162.0256637 | H21: 134.8755102 | J21: 225.5119048 | L21: 297.8571429 | N21: 117.6772222 | Q21: Avg Score | R21: 62.06421556 | T21: 102.2906977 | V21: 133.4081124 | X21: 131.7281437 | Z21: 168.575 | AB21: 299 | AD21: 105.3141784
A22: Total Team Count | B22: 1939 | D22: 1736 | F22: 1130 | H22: 490 | J22: 84 | L22: 21 | N22: 5400 | Q22: Total Team Count | R22: 7942 | T22: 7826 | V22: 5621 | X22: 1670 | Z22: 320 | AB22: 44 | AD22: 23423 | AG22: Total Team Count | AH22: =COUNTIF('[1]3v3'!$G$1:$G$31386,'[1]Analysis - Team'!AH10:AI10) -> 0 | AJ22: =COUNTIF('[1]3v3'!$G$1:$G$31386,'[1]Analysis - Team'!AJ10:AK10) -> 0 | AL22: =COUNTIF('[1]3v3'!$G$1:$G$31386,'[1]Analysis - Team'!AL10:AM10) -> 0 | AN22: =COUNTIF('[1]3v3'!$G$1:$G$31386,'[1]Analysis - Team'!AN10:AO10) -> 0 | AP22: =COUNTIF('[1]3v3'!$G$1:$G$31386,'[1]Analysis - Team'!AP10:AQ10) -> 0 | AR22: =COUNTIF('[1]3v3'!$G$1:$G$31386,'[1]Analysis - Team'!AR10:AS10) -> 0
A26: 4v4 - Most Recent Games | Q26: 4v4 - Most Recent Games | AG26: 4v4 - Most Recent Games
B27: Bronze | D27: Silver | F27: Gold | H27: Platinum | J27: Diamond | L27: Master | N27: Totals | R27: Bronze | T27: Silver | V27: Gold | X27: Platinum | Z27: Diamond | AB27: Master | AD27: Totals | AH27: Bronze | AJ27: Silver | AL27: Gold | AN27: Platinum | AP27: Diamond | AR27: Master | AT27: Totals | AX27: Bronze | AZ27: Silver | BB27: Gold | BD27: Platinum | BF27: Diamond | BH27: Master | BJ27: Totals
A28: Category | B28: Last Week | C28: Last Month | D28: Last Week | E28: Last Month | F28: Last Week | G28: Last Month | H28: Last Week | I28: Last Month | J28: Last Week | K28: Last Month | L28: Last Week | M28: Last Month | N28: Last Week | O28: Last Month | Q28: Category | R28: Last Week | S28: Last Month | T28: Last Week | U28: Last Month | V28: Last Week | W28: Last Month | X28: Last Week | Y28: Last Month | Z28: Last Week | AA28: Last Month | AB28: Last Week | AC28: Last Month | AD28: Last Week | AE28: Last Month | AG28: Weeks Remaining | AH28: Last Week | AI28: Last Month | AJ28: Last Week | AK28: Last Month | AL28: Last Week | AM28: Last Month | AN28: Last Week | AO28: Last Month | AP28: Last Week | AQ28: Last Month | AR28: Last Week | AS28: Last Month | AT28: Last Week | AU28: Last Month | AX28: Last Week | AY28: Last Month | AZ28: Last Week | BA28: Last Month | BB28: Last Week | BC28: Last Month | BD28: Last Week | BE28: Last Month | BF28: Last Week | BG28: Last Month | BH28: Last Week | BI28: Last Month | BJ28: Last Week | BK28: Last Month
A29: Totals | B29: 61 | C29: 170 | D29: 120 | E29: 258 | F29: 56 | G29: 103 | H29: 23 | I29: 63 | J29: 6 | K29: 6 | N29: 266 | O29: 600 | Q29: Totals | R29: 183 | S29: 485 | T29: 403 | U29: 1011 | V29: 412 | W29: 846 | X29: 101 | Y29: 306 | Z29: 33 | AA29: 58 | AC29: 2 | AD29: 1132 | AE29: 2708 | AG29: Totals | AH29: 201 | AI29: 441 | AJ29: 607 | AK29: 1360 | AL29: 172 | AM29: 322 | AN29: 63 | AO29: 183 | AP29: 19 | AQ29: 42 | AR29: 3 | AS29: 3 | AT29: =AH29+AJ29+AL29+AN29+AP29+AR29 -> 1065 | AU29: =AI29+AK29+AM29+AO29+AQ29+AS29 -> 2351 | AX29: =B29+R29+AH29 -> 445 | AY29: =C29+S29+AI29 -> 1096 | AZ29: =D29+T29+AJ29 -> 1130 | BA29: =E29+U29+AK29 -> 2629 | BB29: =F29+V29+AL29 -> 640 | BC29: =G29+W29+AM29 -> 1271 | BD29: =H29+X29+AN29 -> 187 | BE29: =I29+Y29+AO29 -> 552 | BF29: =J29+Z29+AP29 -> 58 | BG29: =K29+AA29+AQ29 -> 106 | BH29: =L29+AB29+AR29 -> 3 | BI29: =M29+AC29+AS29 -> 5 | BJ29: =N29+AD29+AT29 -> 2463 | BK29: =O29+AE29+AU29 -> 5659
A30: At least 1 game within the last month | B30: 231 | D30: 378 | F30: 159 | H30: 86 | J30: 12 | N30: 866 | P30: =N30/P6 -> 0.01771867008 | Q30: At least 1 game within the last month | R30: 668 | T30: 1414 | V30: 1258 | X30: 407 | Z30: 91 | AB30: 2 | AD30: 3840 | AF30: =AD30/AF6 -> 0.03209575233 | AG30: At least 1 game within the last month | AH30: =AH29+AI29 -> 642 | AJ30: =AJ29+AK29 -> 1967 | AL30: =AL29+AM29 -> 494 | AN30: =AN29+AO29 -> 246 | AP30: =AP29+AQ29 -> 61 | AR30: =AR29+AS29 -> 6 | AT30: =AT29+AU29 -> 3416 | AV30: =AT30/AV6 -> 0.03196436759 | AX30: =B30+R30+AH30 -> 1541 | AY30: 0 | AZ30: 3759 | BA30: 0 | BB30: 1911 | BC30: 0 | BD30: 739 | BE30: 0 | BF30: 164 | BG30: 0 | BH30: 8 | BI30: 0 | BJ30: 8122 | BK30: 0
B31: Avg Wins | C31: Avg Losses | D31: Avg Wins | E31: Avg Losses | F31: Avg Wins | G31: Avg Losses | H31: Avg Wins | I31: Avg Losses | J31: Avg Wins | K31: Avg Losses | L31: Avg Wins | M31: Avg Losses | N31: Avg Wins | O31: Avg Losses | R31: Avg Wins | S31: Avg Losses | T31: Avg Wins | U31: Avg Losses | V31: Avg Wins | W31: Avg Losses | X31: Avg Wins | Y31: Avg Losses | Z31: Avg Wins | AA31: Avg Losses | AB31: Avg Wins | AC31: Avg Losses | AD31: Avg Wins | AE31: Avg Losses
A32: Games Count | B32: 2.96803653 | C32: 3.238964992 | D32: 4.952542373 | E32: 3.640677966 | F32: 9.715686275 | G32: 5.769607843 | H32: 6.587878788 | I32: 1.424242424 | J32: 13.5 | K32: 3.928571429 | N32: 5.61595092 | O32: 3.720858896 | Q32: Games Count | R32: 2.392744479 | S32: 3.227129338 | T32: 3.814095238 | U32: 3.327619048 | V32: 6.069868996 | W32: 3.948689956 | X32: 6.146112601 | Y32: 2.014745308 | Z32: 8.927419355 | AA32: 2.161290323 | AB32: 25 | AC32: 1 | AD32: 4.576662519 | AE32: 3.383519978
A33: Avg Score | B33: 54.08371385 | D33: 76.13050847 | F33: 142.254902 | H33: 45.12727273 | J33: 128.2857143 | N33: 76.66687117 | Q33: Avg Score | R33: 46.61356467 | T33: 67.45561905 | V33: 92.22871179 | X33: 47.89008043 | Z33: 99.05645161 | AB33: 265.5 | AD33: 68.70178349
A34: Total Team Count | B34: 657 | D34: 590 | F34: 204 | H34: 165 | J34: 14 | N34: 1630 | Q34: Total Team Count | R34: 1902 | T34: 2625 | V34: 1832 | X34: 746 | Z34: 124 | AB34: 4 | AD34: 7233 | AG34: Total Team Count | AH34: =COUNTIF('[1]4v4'!$I$1:$I$6410,'[1]Analysis - Team'!AH17:AI17) -> 0 | AJ34: =COUNTIF('[1]4v4'!$I$1:$I$6410,'[1]Analysis - Team'!AJ17:AK17) -> 0 | AL34: =COUNTIF('[1]4v4'!$I$1:$I$6410,'[1]Analysis - Team'!AL17:AM17) -> 0 | AN34: =COUNTIF('[1]4v4'!$I$1:$I$6410,'[1]Analysis - Team'!AN17:AO17) -> 0 | AP34: =COUNTIF('[1]4v4'!$I$1:$I$6410,'[1]Analysis - Team'!AP17:AQ17) -> 0 | AR34: =COUNTIF('[1]4v4'!$I$1:$I$6410,'[1]Analysis - Team'!AR17:AS17) -> 0
A38: 2v2r - Most Recent Games | Q38: 2v2r - Most Recent Games | AG38: 2v2 Random - Most Recent Games
B39: Bronze | D39: Silver | F39: Gold | H39: Platinum | J39: Diamond | L39: Master | N39: Totals | R39: Bronze | T39: Silver | V39: Gold | X39: Platinum | Z39: Diamond | AB39: Master | AD39: Totals | AH39: Bronze | AJ39: Silver | AL39: Gold | AN39: Platinum | AP39: Diamond | AR39: Master | AT39: Totals | AX39: Bronze | AZ39: Silver | BB39: Gold | BD39: Platinum | BF39: Diamond | BH39: Master | BJ39: Totals
A40: Category | B40: Last Week | C40: Last Month | D40: Last Week | E40: Last Month | F40: Last Week | G40: Last Month | H40: Last Week | I40: Last Month | J40: Last Week | K40: Last Month | L40: Last Week | M40: Last Month | N40: Last Week | O40: Last Month | Q40: Category | R40: Last Week | S40: Last Month | T40: Last Week | U40: Last Month | V40: Last Week | W40: Last Month | X40: Last Week | Y40: Last Month | Z40: Last Week | AA40: Last Month | AB40: Last Week | AC40: Last Month | AD40: Last Week | AE40: Last Month | AG40: Weeks Remaining | AH40: Last Week | AI40: Last Month | AJ40: Last Week | AK40: Last Month | AL40: Last Week | AM40: Last Month | AN40: Last Week | AO40: Last Month | AP40: Last Week | AQ40: Last Month | AR40: Last Week | AS40: Last Month | AT40: Last Week | AU40: Last Month | AX40: Last Week | AY40: Last Month | AZ40: Last Week | BA40: Last Month | BB40: Last Week | BC40: Last Month | BD40: Last Week | BE40: Last Month | BF40: Last Week | BG40: Last Month | BH40: Last Week | BI40: Last Month | BJ40: Last Week | BK40: Last Month
A41: Totals | B41: 324 | C41: 624 | D41: 970 | E41: 964 | F41: 801 | G41: 522 | H41: 473 | I41: 288 | J41: 166 | K41: 83 | L41: 89 | M41: 29 | N41: 2823 | O41: 2510 | Q41: Totals | R41: 800 | S41: 1211 | T41: 3102 | U41: 3668 | V41: 3593 | W41: 3020 | X41: 1755 | Y41: 1395 | Z41: 848 | AA41: 464 | AB41: 252 | AC41: 142 | AD41: 10350 | AE41: 9900 | AG41: Totals | AH41: 854 | AI41: 1477 | AJ41: 3298 | AK41: 3808 | AL41: 3286 | AM41: 2682 | AN41: 1538 | AO41: 1181 | AP41: 649 | AQ41: 454 | AR41: 262 | AS41: 141 | AT41: =AH41+AJ41+AL41+AN41+AP41+AR41 -> 9887 | AU41: =AI41+AK41+AM41+AO41+AQ41+AS41 -> 9743 | AX41: =B41+R41+AH41 -> 1978 | AY41: =C41+S41+AI41 -> 3312 | AZ41: =D41+T41+AJ41 -> 7370 | BA41: =E41+U41+AK41 -> 8440 | BB41: =F41+V41+AL41 -> 7680 | BC41: =G41+W41+AM41 -> 6224 | BD41: =H41+X41+AN41 -> 3766 | BE41: =I41+Y41+AO41 -> 2864 | BF41: =J41+Z41+AP41 -> 1663 | BG41: =K41+AA41+AQ41 -> 1001 | BH41: =L41+AB41+AR41 -> 603 | BI41: =M41+AC41+AS41 -> 312 | BJ41: =N41+AD41+AT41 -> 23060 | BK41: =O41+AE41+AU41 -> 22153
A42: At least 1 game within the last month | B42: 948 | D42: 1934 | F42: 1323 | H42: 761 | J42: 249 | L42: 118 | N42: 5333 | P42: =N42/P6 -> 0.1091150895 | Q42: At least 1 game within the last month | R42: 2011 | T42: 6770 | V42: 6613 | X42: 3150 | Z42: 1312 | AB42: 394 | AD42: 20250 | AF42: =AD42/AF6 -> 0.1692549439 | AG42: At least 1 game within the last month | AH42: 2331 | AJ42: 7106 | AL42: 5968 | AN42: 2719 | AP42: 1103 | AR42: 403 | AT42: =AT41+AU41 -> 19630 | AV42: =AT42/AV6 -> 0.1836828266 | AX42: =B42+R42+AH42 -> 5290 | AY42: 0 | AZ42: 15810 | BA42: 0 | BB42: 13904 | BC42: 0 | BD42: 6630 | BE42: 0 | BF42: 2664 | BG42: 0 | BH42: 915 | BI42: 0 | BJ42: 45213 | BK42: 0
B43: Avg Wins | C43: Avg Losses | D43: Avg Wins | E43: Avg Losses | F43: Avg Wins | G43: Avg Losses | H43: Avg Wins | I43: Avg Losses | J43: Avg Wins | K43: Avg Losses | L43: Avg Wins | M43: Avg Losses | N43: Avg Wins | O43: Avg Losses | R43: Avg Wins | S43: Avg Losses | T43: Avg Wins | U43: Avg Losses | V43: Avg Wins | W43: Avg Losses | X43: Avg Wins | Y43: Avg Losses | Z43: Avg Wins | AA43: Avg Losses | AB43: Avg Wins | AC43: Avg Losses | AD43: Avg Wins | AE43: Avg Losses
A44: Games Count | B44: 3.324458484 | C44: 5.347472924 | D44: 11.13213573 | E44: 12.41756487 | F44: 25.37207833 | G44: 24.90587492 | H44: 41.42628571 | I44: 37.95771429 | J44: 52.37267081 | K44: 47.02795031 | L44: 75.26717557 | M44: 58.95419847 | N44: 18.13273061 | O44: 18.14216457 | Q44: Games Count | R44: 3.402061856 | S44: 5.704404873 | T44: 7.816220535 | U44: 10.33659608 | V44: 19.14771409 | W44: 18.28765375 | X44: 26.31938216 | Y44: 22.8428002 | Z44: 41.59583588 | AA44: 34.97550521 | AB44: 56.22368421 | AC44: 43.1995614 | AD44: 15.31964214 | AE44: 15.29968738
A45: Avg Score | B45: 71.28023466 | D45: 236.5353293 | F45: 428.3404927 | H45: 559.8137143 | J45: 572.9161491 | L45: 812.5725191 | N45: 289.4790356 | Q45: Avg Score | R45: 65.47797563 | T45: 164.939173 | V45: 353.6142957 | X45: 414.3398107 | Z45: 558.402327 | AB45: 703 | AD45: 264.1925968
A46: Total Player Count | B46: 2216 | D46: 2505 | F46: 1583 | H46: 875 | J46: 322 | L46: 131 | N46: 7632 | Q46: Total Player Count | R46: 5335 | T46: 10012 | V46: 8618 | X46: 4014 | Z46: 1633 | AB46: 456 | AD46: 30068 | AG46: Total Player Count | AH46: 5780 | AJ46: 10205 | AL46: 7742 | AN46: 3511 | AP46: 1413 | AR46: 493
A50: 3v3r - Most Recent Games | Q50: 3v3r - Most Recent Games | AG50: 3v3 Random - Most Recent Games
B51: Bronze | D51: Silver | F51: Gold | H51: Platinum | J51: Diamond | L51: Master | N51: Totals | R51: Bronze | T51: Silver | V51: Gold | X51: Platinum | Z51: Diamond | AB51: Master | AD51: Totals | AH51: Bronze | AJ51: Silver | AL51: Gold | AN51: Platinum | AP51: Diamond | AR51: Master | AT51: Totals | AX51: Bronze | AZ51: Silver | BB51: Gold | BD51: Platinum | BF51: Diamond | BH51: Master | BJ51: Totals
A52: Category | B52: Last Week | C52: Last Month | D52: Last Week | E52: Last Month | F52: Last Week | G52: Last Month | H52: Last Week | I52: Last Month | J52: Last Week | K52: Last Month | L52: Last Week | M52: Last Month | N52: Last Week | O52: Last Month | Q52: Category | R52: Last Week | S52: Last Month | T52: Last Week | U52: Last Month | V52: Last Week | W52: Last Month | X52: Last Week | Y52: Last Month | Z52: Last Week | AA52: Last Month | AB52: Last Week | AC52: Last Month | AD52: Last Week | AE52: Last Month | AG52: Weeks Remaining | AH52: Last Week | AI52: Last Month | AJ52: Last Week | AK52: Last Month | AL52: Last Week | AM52: Last Month | AN52: Last Week | AO52: Last Month | AP52: Last Week | AQ52: Last Month | AR52: Last Week | AS52: Last Month | AT52: Last Week | AU52: Last Month | AX52: Last Week | AY52: Last Month | AZ52: Last Week | BA52: Last Month | BB52: Last Week | BC52: Last Month | BD52: Last Week | BE52: Last Month | BF52: Last Week | BG52: Last Month | BH52: Last Week | BI52: Last Month | BJ52: Last Week | BK52: Last Month
A53: Totals | B53: 445 | C53: 665 | D53: 1656 | E53: 1400 | F53: 1396 | G53: 773 | H53: 639 | I53: 285 | J53: 236 | K53: 92 | N53: 4372 | O53: 3215 | Q53: Totals | R53: 908 | S53: 1441 | T53: 3883 | U53: 4120 | V53: 3509 | W53: 2654 | X53: 1001 | Y53: 769 | Z53: 358 | AA53: 286 | AB53: 95 | AC53: 103 | AD53: 9754 | AE53: 9373 | AG53: Totals | AH53: 1031 | AI53: 1662 | AJ53: 4638 | AK53: 4714 | AL53: 3749 | AM53: 2656 | AN53: 1249 | AO53: 860 | AP53: 448 | AQ53: 295 | AR53: 206 | AS53: 127 | AT53: =AH53+AJ53+AL53+AN53+AP53+AR53 -> 11321 | AU53: =AI53+AK53+AM53+AO53+AQ53+AS53 -> 10314 | AX53: =B53+R53+AH53 -> 2384 | AY53: =C53+S53+AI53 -> 3768 | AZ53: =D53+T53+AJ53 -> 10177 | BA53: =E53+U53+AK53 -> 10234 | BB53: =F53+V53+AL53 -> 8654 | BC53: =G53+W53+AM53 -> 6083 | BD53: =H53+X53+AN53 -> 2889 | BE53: =I53+Y53+AO53 -> 1914 | BF53: =J53+Z53+AP53 -> 1042 | BG53: =K53+AA53+AQ53 -> 673 | BH53: =L53+AB53+AR53 -> 301 | BI53: =M53+AC53+AS53 -> 230 | BJ53: =N53+AD53+AT53 -> 25447 | BK53: =O53+AE53+AU53 -> 22902
A54: At least 1 game within the last month | B54: 1110 | D54: 3056 | F54: 2169 | H54: 924 | J54: 328 | N54: 7587 | P54: =N54/P6 -> 0.1552327366 | Q54: At least 1 game within the last month | R54: 2349 | T54: 8003 | V54: 6163 | X54: 1770 | Z54: 644 | AB54: 198 | AD54: 19127 | AF54: =AD54/AF6 -> 0.159868608 | AG54: At least 1 game within the last month | AH54: 2693 | AJ54: 9352 | AL54: 6405 | AN54: 2109 | AP54: 743 | AR54: 333 | AT54: =AT53+AU53 -> 21635 | AV54: =AT54/AV6 -> 0.2024441138 | AX54: =B54+R54+AH54 -> 6152 | AY54: 0 | AZ54: 20411 | BA54: 0 | BB54: 14737 | BC54: 0 | BD54: 4803 | BE54: 0 | BF54: 1715 | BG54: 0 | BH54: 531 | BI54: 0 | BJ54: 48349 | BK54: 0
B55: Avg Wins | C55: Avg Losses | D55: Avg Wins | E55: Avg Losses | F55: Avg Wins | G55: Avg Losses | H55: Avg Wins | I55: Avg Losses | J55: Avg Wins | K55: Avg Losses | L55: Avg Wins | M55: Avg Losses | N55: Avg Wins | O55: Avg Losses | R55: Avg Wins | S55: Avg Losses | T55: Avg Wins | U55: Avg Losses | V55: Avg Wins | W55: Avg Losses | X55: Avg Wins | Y55: Avg Losses | Z55: Avg Wins | AA55: Avg Losses | AB55: Avg Wins | AC55: Avg Losses | AD55: Avg Wins | AE55: Avg Losses
A56: Games Count | B56: 6.362335217 | C56: 9.856497175 | D56: 15.83090615 | E56: 17.61299892 | F56: 35.47940824 | G56: 36.10595762 | H56: 48.74141221 | I56: 46.86832061 | J56: 59.2253886 | K56: 54.47150259 | N56: 24.09487279 | O56: 25.21324529 | Q56: Games Count | R56: 3.458523841 | S56: 5.705747877 | T56: 9.401586736 | U56: 11.63620966 | V56: 23.58335477 | W56: 22.8729097 | X56: 27.79808529 | Y56: 23.66057441 | Z56: 32.58787879 | AA56: 25.84727273 | AB56: 29.5210728 | AC56: 17.25287356 | AD56: 15.23129825 | AE56: 15.55049123
A57: Avg Score | B57: 107.3962335 | D57: 293.8225458 | F57: 518.9732107 | H57: 591.3311069 | J57: 631.9792746 | N57: 353.7278112 | Q57: Avg Score | R57: 64.76241019 | T57: 198.1370119 | V57: 414.257911 | X57: 431.3285466 | Z57: 447.9115152 | AB57: 446.8275862 | AD57: 267.9879649
A58: Total Player Count | B58: 2655 | D58: 3708 | F58: 2501 | H58: 1048 | J58: 386 | N58: 10298 | Q58: Total Player Count | R58: 6124 | T58: 11218 | V58: 7774 | X58: 2298 | Z58: 825 | AB58: 261 | AD58: 28500 | AG58: Total Player Count | AH58: 6675 | AJ58: 12677 | AL58: 7988 | AN58: 2684 | AP58: 957 | AR58: 404
A62: 4v4r - Most Recent Games | Q62: 4v4r - Most Recent Games | AG62: 4v4 Random - Most Recent Games
B63: Bronze | D63: Silver | F63: Gold | H63: Platinum | J63: Diamond | L63: Master | N63: Totals | R63: Bronze | T63: Silver | V63: Gold | X63: Platinum | Z63: Diamond | AB63: Master | AD63: Totals | AH63: Bronze | AJ63: Silver | AL63: Gold | AN63: Platinum | AP63: Diamond | AR63: Master | AT63: Totals | AX63: Bronze | AZ63: Silver | BB63: Gold | BD63: Platinum | BF63: Diamond | BH63: Master | BJ63: Totals
A64: Category | B64: Last Week | C64: Last Month | D64: Last Week | E64: Last Month | F64: Last Week | G64: Last Month | H64: Last Week | I64: Last Month | J64: Last Week | K64: Last Month | L64: Last Week | M64: Last Month | N64: Last Week | O64: Last Month | Q64: Category | R64: Last Week | S64: Last Month | T64: Last Week | U64: Last Month | V64: Last Week | W64: Last Month | X64: Last Week | Y64: Last Month | Z64: Last Week | AA64: Last Month | AB64: Last Week | AC64: Last Month | AD64: Last Week | AE64: Last Month | AG64: Weeks Remaining | AH64: Last Week | AI64: Last Month | AJ64: Last Week | AK64: Last Month | AL64: Last Week | AM64: Last Month | AN64: Last Week | AO64: Last Month | AP64: Last Week | AQ64: Last Month | AR64: Last Week | AS64: Last Month | AT64: Last Week | AU64: Last Month | AX64: Last Week | AY64: Last Month | AZ64: Last Week | BA64: Last Month | BB64: Last Week | BC64: Last Month | BD64: Last Week | BE64: Last Month | BF64: Last Week | BG64: Last Month | BH64: Last Week | BI64: Last Month | BJ64: Last Week | BK64: Last Month
A65: Totals | B65: 246 | C65: 435 | D65: 677 | E65: 687 | F65: 475 | G65: 286 | H65: 95 | I65: 74 | J65: 50 | K65: 38 | L65: 24 | M65: 16 | N65: 1567 | O65: 1536 | Q65: Totals | R65: 1180 | S65: 1821 | T65: 5726 | U65: 5716 | V65: 5687 | W65: 3527 | X65: 1143 | Y65: 835 | Z65: 482 | AA65: 293 | AB65: 219 | AC65: 126 | AD65: 14437 | AE65: 12318 | AG65: Totals | AH65: 1363 | AI65: 1992 | AJ65: 5935 | AK65: 5428 | AL65: 5485 | AM65: 3179 | AN65: 1202 | AO65: 758 | AP65: 549 | AQ65: 318 | AR65: 80 | AS65: 86 | AT65: =AH65+AJ65+AL65+AN65+AP65+AR65 -> 14614 | AU65: =AI65+AK65+AM65+AO65+AQ65+AS65 -> 11761 | AX65: =B65+R65+AH65 -> 2789 | AY65: =C65+S65+AI65 -> 4248 | AZ65: =D65+T65+AJ65 -> 12338 | BA65: =E65+U65+AK65 -> 11831 | BB65: =F65+V65+AL65 -> 11647 | BC65: =G65+W65+AM65 -> 6992 | BD65: =H65+X65+AN65 -> 2440 | BE65: =I65+Y65+AO65 -> 1667 | BF65: =J65+Z65+AP65 -> 1081 | BG65: =K65+AA65+AQ65 -> 649 | BH65: =L65+AB65+AR65 -> 323 | BI65: =M65+AC65+AS65 -> 228 | BJ65: =N65+AD65+AT65 -> 30618 | BK65: =O65+AE65+AU65 -> 25615
A66: At least 1 game within the last month | B66: 681 | D66: 1364 | F66: 761 | H66: 169 | J66: 88 | L66: 40 | N66: 3103 | P66: =N66/P6 -> 0.06348849105 | Q66: At least 1 game within the last month | R66: 3001 | T66: 11442 | V66: 9214 | X66: 1978 | Z66: 775 | AB66: 345 | AD66: 26755 | AF66: =AD66/AF6 -> 0.2236254827 | AG66: At least 1 game within the last month | AH66: 3355 | AJ66: 11363 | AL66: 8664 | AN66: 1960 | AP66: 867 | AR66: 166 | AT66: =AT65+AU65 -> 26375 | AV66: =AT66/AV6 -> 0.246797481 | AX66: =B66+R66+AH66 -> 7037 | AY66: 0 | AZ66: 24169 | BA66: 0 | BB66: 18639 | BC66: 0 | BD66: 4107 | BE66: 0 | BF66: 1730 | BG66: 0 | BH66: 551 | BI66: 0 | BJ66: 56233 | BK66: 0
B67: Avg Wins | C67: Avg Losses | D67: Avg Wins | E67: Avg Losses | F67: Avg Wins | G67: Avg Losses | H67: Avg Wins | I67: Avg Losses | J67: Avg Wins | K67: Avg Losses | L67: Avg Wins | M67: Avg Losses | N67: Avg Wins | O67: Avg Losses | R67: Avg Wins | S67: Avg Losses | T67: Avg Wins | U67: Avg Losses | V67: Avg Wins | W67: Avg Losses | X67: Avg Wins | Y67: Avg Losses | Z67: Avg Wins | AA67: Avg Losses | AB67: Avg Wins | AC67: Avg Losses | AD67: Avg Wins | AE67: Avg Losses
A68: Games Count | B68: 3.304652645 | C68: 5.768642447 | D68: 13.94500296 | E68: 16.62329982 | F68: 32.21064553 | G68: 34.61268403 | H68: 22.069869 | I68: 20.09606987 | J68: 21.08547009 | K68: 14.1965812 | L68: 30.72881356 | M68: 13.93220339 | N68: 19.65765172 | O68: 21.07189974 | Q68: Games Count | R68: 3.961865436 | S68: 6.265606024 | T68: 10.44076977 | U68: 12.13572931 | V68: 30.91454448 | W68: 29.92126973 | X68: 30.31394892 | Y68: 27.0475442 | Z68: 36.77310062 | AA68: 30.53901437 | AB68: 55.06218905 | AC68: 36.38557214 | AD68: 17.53933333 | AE68: 17.78025641
A69: Avg Score | B69: 63.75908222 | D69: 273.668835 | F69: 502.5492639 | H69: 330.0436681 | J69: 372.7521368 | L69: 467.4576271 | N69: 307.2293316 | Q69: Avg Score | R69: 71.19006558 | T69: 208.5519021 | V69: 480.4871772 | X69: 424.1654224 | Z69: 481.2638604 | AB69: 757.340796 | AD69: 286.8385128
A70: Total Player Count | B70: 1569 | D70: 1691 | F70: 883 | H70: 229 | J70: 117 | L70: 59 | N70: 4548 | Q70: Total Player Count | R70: 8234 | T70: 15693 | V70: 11152 | X70: 2545 | Z70: 974 | AB70: 402 | AD70: 39000 | AG70: Total Player Count | AH70: 8350 | AJ70: 15115 | AL70: 10391 | AN70: 2499 | AP70: 1089 | AR70: 220

Sheet IDs
A1: KR | K1: EU | U1: AM
A2: Player IDs | B2: Team Type | D2: Unique IDs | E2: # of team types | F2: Only in team games (if error) | G2: Unique 1v1 | H2: Only in 1v1 (if error) | K2: Team IDs | L2: Team Type | N2: Unique IDs | O2: # of team types | P2: Only in team games (if error) | Q2: Unique 1v1 | R2: Only in 1v1 (if error) | U2: Team IDs | AA2: Unique 1v1
A3: 32324 | B3: 4v4r | D3: 32324 | E3: 1 | G3: 498656 | H3: 498656 | K3: 1421 | L3: 4v4r | N3: 1421 | O3: 1 | Q3: 1000104 | R3: 1000104 | U3: 1027777 | AA3: 4023475
A4: 32356 | B4: 4v4r | D4: 32356 | E4: 1 | G4: 773496 | K4: 1432 | L4: 2v2 Team | N4: 1432 | O4: 2 | Q4: 1000179 | R4: 1000179 | U4: 1676535 | AA4: 3995607
A5: 32399 | B5: 4v4r | D5: 32399 | E5: 1 | G5: 988145 | K5: 1432 | L5: 2v2r | N5: 1455 | O5: 2 | P5: 1455 | Q5: 1000688 | R5: 1000688 | U5: 338289 | AA5: 2308207
A6: 32408 | B6: 2v2 Team | D6: 32408 | E6: 1 | F6: 32408 | G6: 2733866 | H6: 2733866 | K6: 1455 | L6: 2v2 Team | N6: 1469 | O6: 1 | P6: 1469 | Q6: 1001004 | U6: 1035257 | AA6: 5788487
A7: 32472 | B7: 3v3r | D7: 32472 | E7: 1 | F7: 32472 | G7: 665308 | H7: 665308 | K7: 1455 | L7: 2v2r | N7: 1474 | O7: 1 | Q7: 1001394 | R7: 1001394 | U7: 277286 | AA7: 5773950
A8: 32530 | B8: 2v2 Team | D8: 32530 | E8: 1 | F8: 32530 | G8: 882377 | K8: 1469 | L8: 2v2r | N8: 1496 | O8: 2 | Q8: 1001501 | U8: 2539992 | AA8: 4784828
A9: 32531 | B9: 2v2 Team | D9: 32531 | E9: 1 | G9: 2994028 | H9: 2994028 | K9: 1474 | L9: 2v2 Team | N9: 1498 | O9: 1 | Q9: 1001890 | U9: 4624181 | AA9: 2437355
A10: 32736 | B10: 2v2r | D10: 32736 | E10: 1 | G10: 4440248 | H10: 4440248 | K10: 1496 | L10: 2v2r | N10: 1502 | O10: 2 | P10: 1502 | Q10: 1004449 | R10: 1004449 | U10: 1221316 | AA10: 188197
A11: 32818 | B11: 4v4r | D11: 32818 | E11: 1 | G11: 4387038 | H11: 4387038 | K11: 1496 | L11: 4v4r | N11: 1509 | O11: 3 | Q11: 1004477 | R11: 1004477 | U11: 753127 | AA11: 1191024
A12: 32826 | B12: 3v3r | D12: 32826 | E12: 1 | G12: 4412735 | K12: 1498 | L12: 4v4r | N12: 1525 | O12: 2 | Q12: 1004487 | U12: 640177 | AA12: 5745555
A13: 32862 | B13: 2v2 Team | D13: 32862 | E13: 1 | G13: 4128856 | H13: 4128856 | K13: 1502 | L13: 2v2 Team | N13: 1541 | O13: 2 | Q13: 1004633 | U13: 1728443 | AA13: 4193088
A14: 32881 | B14: 2v2 Team | D14: 32881 | E14: 1 | G14: 4641796 | H14: 4641796 | K14: 1502 | L14: 3v3 Team | N14: 1545 | O14: 1 | Q14: 1005264 | R14: 1005264 | U14: 353798 | AA14: 1992499
A15: 32946 | B15: 3v3r | D15: 32946 | E15: 1 | G15: 907958 | K15: 1509 | L15: 2v2 Team | N15: 1548 | O15: 1 | Q15: 1005331 | R15: 1005331 | U15: 3278934 | AA15: 2120254
A16: 33010 | B16: 2v2 Team | D16: 33010 | E16: 12 | F16: 33010 | G16: 3970178 | H16: 3970178 | K16: 1509 | L16: 2v2 Team | N16: 1559 | O16: 1 | Q16: 1006726 | R16: 1006726 | U16: 1252365 | AA16: 5176152
A17: 33010 | B17: 2v2 Team | D17: 33157 | E17: 2 | F17: 33157 | G17: 1047580 | K17: 1509 | L17: 2v2r | N17: 1569 | O17: 2 | P17: 1569 | Q17: 1006847 | R17: 1006847 | U17: 1874276 | AA17: 1123596
A18: 33010 | B18: 2v2 Team | D18: 33222 | E18: 1 | G18: 986867 | H18: 986867 | K18: 1525 | L18: 2v2r | N18: 1579 | O18: 1 | Q18: 1006925 | R18: 1006925 | U18: 662930 | AA18: 5600712
A19: 33010 | B19: 3v3 Team | D19: 33341 | E19: 3 | G19: 841553 | K19: 1525 | L19: 3v3r | N19: 1598 | O19: 1 | Q19: 1006976 | R19: 1006976 | U19: 5271526 | AA19: 4227828
A20: 33010 | B20: 3v3 Team | D20: 33344 | E20: 1 | G20: 4232044 | H20: 4232044 | K20: 1541 | L20: 2v2 Team | N20: 1624 | O20: 3 | Q20: 1007596 | U20: 5283313 | AA20: 5651389
A21: 33010 | B21: 3v3 Team | D21: 33349 | E21: 1 | G21: 822092 | H21: 822092 | K21: 1541 | L21: 4v4r | N21: 1645 | O21: 1 | P21: 1645 | Q21: 1007770 | R21: 1007770 | U21: 115749 | AA21: 618736
A22: 33010 | B22: 3v3 Team | D22: 33420 | E22: 2 | F22: 33420 | G22: 4481661 | K22: 1545 | L22: 4v4r | N22: 1659 | O22: 3 | Q22: 1007773 | R22: 1007773 | U22: 5402528 | AA22: 5260506
A23: 33010 | B23: 3v3r | D23: 33453 | E23: 2 | G23: 4225040 | K23: 1548 | L23: 3v3r | N23: 1704 | O23: 2 | P23: 1704 | Q23: 1007808 | U23: 4158430 | AA23: 4586681
A24: 33010 | B24: 4v4 Team | D24: 33495 | E24: 1 | F24: 33495 | G24: 371579 | K24: 1559 | L24: 4v4r | N24: 1713 | O24: 4 | P24: 1713 | Q24: 1008252 | U24: 1126278 | AA24: 2707159
A25: 33010 | B25: 4v4 Team | D25: 33538 | E25: 1 | G25: 1086577 | H25: 1086577 | K25: 1569 | L25: 2v2 Team | N25: 1747 | O25: 1 | Q25: 1010130 | R25: 1010130 | U25: 1006247 | AA25: 3112235
A26: 33010 | B26: 4v4 Team | D26: 33677 | E26: 2 | F26: 33677 | G26: 3882996 | K26: 1569 | L26: 3v3 Team | N26: 1759 | O26: 1 | Q26: 1010267 | U26: 263562 | AA26: 4522658
A27: 33010 | B27: 4v4r | D27: 33751 | E27: 2 | F27: 33751 | G27: 349348 | K27: 1579 | L27: 4v4r | N27: 1785 | O27: 2 | Q27: 1010562 | R27: 1010562 | U27: 4683397 | AA27: 4496414
A28: 33157 | B28: 2v2r | D28: 33789 | E28: 1 | F28: 33789 | G28: 4488615 | K28: 1598 | L28: 3v3 Team | N28: 1789 | O28: 1 | Q28: 1010847 | R28: 1010847 | U28: 2270774 | AA28: 1335052
A29: 33157 | B29: 3v3r | D29: 33847 | E29: 2 | G29: 4388115 | K29: 1624 | L29: 2v2r | N29: 1817 | O29: 1 | P29: 1817 | Q29: 1011134 | R29: 1011134 | U29: 4688124 | AA29: 5286734
A30: 33222 | B30: 3v3r | D30: 33869 | E30: 1 | G30: 109382 | K30: 1624 | L30: 3v3r | N30: 1821 | O30: 1 | P30: 1821 | Q30: 1011169 | R30: 1011169 | U30: 3207081 | AA30: 1564640
A31: 33341 | B31: 2v2r | D31: 33929 | E31: 2 | F31: 33929 | G31: 4380301 | K31: 1624 | L31: 4v4r | N31: 1842 | O31: 1 | Q31: 1011370 | R31: 1011370 | U31: 670830 | AA31: 5085671
A32: 33341 | B32: 3v3r | D32: 33969 | E32: 2 | G32: 989257 | K32: 1645 | L32: 4v4r | N32: 1887 | O32: 1 | Q32: 1011558 | R32: 1011558 | U32: 217573 | AA32: 774008
A33: 33341 | B33: 4v4r | D33: 34288 | E33: 1 | G33: 1409865 | K33: 1659 | L33: 2v2 Team | N33: 1921 | O33: 1 | Q33: 1011774 | U33: 5236378 | AA33: 2384197
A34: 33344 | B34: 3v3r | D34: 34384 | E34: 2 | G34: 2564086 | K34: 1659 | L34: 3v3 Team | N34: 1944 | O34: 1 | P34: 1944 | Q34: 1011878 | U34: 1364837 | AA34: 4100416
A35: 33349 | B35: 3v3r | D35: 34461 | E35: 1 | G35: 4462363 | K35: 1659 | L35: 4v4 Team | N35: 1950 | O35: 10 | P35: 1950 | Q35: 1012420 | U35: 783738 | AA35: 1305822
A36: 33420 | B36: 2v2 Team | D36: 34552 | E36: 1 | G36: 4143496 | K36: 1704 | L36: 2v2r | N36: 1963 | O36: 2 | Q36: 1013190 | U36: 1320753 | AA36: 5327599
A37: 33420 | B37: 2v2r | D37: 34594 | E37: 1 | F37: 34594 | G37: 3642092 | H37: 3642092 | K37: 1704 | L37: 4v4r | N37: 1974 | O37: 1 | P37: 1974 | Q37: 1013323 | U37: 4485706 | AA37: 2522486
A38: 33453 | B38: 2v2 Team | D38: 34607 | E38: 1 | F38: 34607 | G38: 3171432 | H38: 3171432 | K38: 1713 | L38: 2v2 Team | N38: 1992 | O38: 2 | Q38: 1013401 | U38: 482458 | AA38: 4398053
A39: 33453 | B39: 3v3r | D39: 34648 | E39: 1 | G39: 783687 | K39: 1713 | L39: 2v2 Team | N39: 1994 | O39: 1 | Q39: 101367 | R39: 101367 | U39: 5268610 | AA39: 3025938
A40: 33495 | B40: 2v2r | D40: 34668 | E40: 1 | G40: 774592 | K40: 1713 | L40: 3v3 Team | N40: 2011 | O40: 5 | P40: 2011 | Q40: 101409 | U40: 344215 | AA40: 4728181
A41: 33538 | B41: 3v3r | D41: 34736 | E41: 1 | G41: 203441 | H41: 203441 | K41: 1713 | L41: 2v2r | N41: 2015 | O41: 1 | Q41: 1014594 | U41: 5370249 | AA41: 607327
A42: 33677 | B42: 2v2 Team | D42: 34916 | E42: 4 | F42: 34916 | G42: 3367592 | K42: 1747 | L42: 3v3r | N42: 2064 | O42: 3 | P42: 2064 | Q42: 1015227 | U42: 1370224 | AA42: 839832
A43: 33677 | B43: 2v2 Team | D43: 35056 | E43: 2 | G43: 4584261 | K43: 1759 | L43: 2v2r | N43: 2065 | O43: 1 | Q43: 1016678 | R43: 1016678 | U43: 4868802 | AA43: 5217367
A44: 33751 | B44: 2v2r | D44: 35127 | E44: 1 | G44: 727736 | K44: 1785 | L44: 3v3r | N44: 2070 | O44: 1 | P44: 2070 | Q44: 1016825 | U44: 2384882 | AA44: 619575
A45: 33751 | B45: 3v3r | D45: 35229 | E45: 1 | G45: 319649 | K45: 1785 | L45: 4v4r | N45: 2071 | O45: 2 | P45: 2071 | Q45: 1017603 | U45: 4127344 | AA45: 4791817
A46: 33789 | B46: 2v2 Team | D46: 35237 | E46: 1 | G46: 3924735 | K46: 1789 | L46: 2v2r | N46: 2098 | O46: 3 | P46: 2098 | Q46: 1017635 | U46: 4569351 | AA46: 5150695
A47: 33847 | B47: 3v3r | D47: 35269 | E47: 1 | F47: 35269 | G47: 4350690 | K47: 1817 | L47: 2v2 Team | N47: 2109 | O47: 1 | Q47: 1017952 | U47: 765605 | AA47: 872905
A48: 33847 | B48: 4v4r | D48: 35347 | E48: 1 | F48: 35347 | G48: 395627 | H48: 395627 | K48: 1821 | L48: 2v2 Team | N48: 2118 | O48: 1 | Q48: 1018413 | R48: 1018413 | U48: 3785882 | AA48: 952790
A49: 33869 | B49: 2v2r | D49: 35421 | E49: 1 | G49: 1291291 | K49: 1842 | L49: 2v2r | N49: 2145 | O49: 2 | P49: 2145 | Q49: 1018594 | R49: 1018594 | U49: 2305814 | AA49: 5027270
A50: 33929 | B50: 2v2 Team | D50: 35586 | E50: 1 | G50: 238103 | H50: 238103 | K50: 1887 | L50: 4v4r | N50: 2154 | O50: 1 | Q50: 1019103 | U50: 940029 | AA50: 3360605
A51: 33929 | B51: 2v2 Team | D51: 35633 | E51: 1 | G51: 4615493 | K51: 1921 | L51: 4v4r | N51: 2172 | O51: 1 | P51: 2172 | Q51: 1019174 | U51: 4964828 | AA51: 285939
A52: 33969 | B52: 2v2 Team | D52: 35835 | E52: 1 | G52: 936337 | K52: 1944 | L52: 2v2r | N52: 2226 | O52: 1 | Q52: 1019352 | U52: 2814766 | AA52: 2309387
A53: 33969 | B53: 2v2r | D53: 35847 | E53: 1 | F53: 35847 | G53: 3389413 | H53: 3389413 | K53: 1950 | L53: 2v2 Team | N53: 2274 | O53: 2 | Q53: 1019503 | U53: 1988611 | AA53: 5004360
A54: 34288 | B54: 2v2r | D54: 36015 | E54: 4 | G54: 2616531 | K54: 1950 | L54: 2v2 Team | N54: 2278 | O54: 2 | P54: 2278 | Q54: 1020252 | R54: 1020252 | U54: 2614426 | AA54: 5500962
A55: 34384 | B55: 3v3r | D55: 36071 | E55: 1 | G55: 583438 | K55: 1950 | L55: 2v2 Team | N55: 2299 | O55: 2 | Q55: 1020819 | U55: 4227275 | AA55: 2251663
A56: 34384 | B56: 4v4r | D56: 36115 | E56: 1 | G56: 943777 | H56: 943777 | K56: 1950 | L56: 2v2 Team | N56: 2301 | O56: 1 | P56: 2301 | Q56: 1020929 | U56: 720619 | AA56: 5395133
A57: 34461 | B57: 4v4r | D57: 36240 | E57: 2 | G57: 1270922 | K57: 1950 | L57: 3v3 Team | N57: 2303 | O57: 9 | P57: 2303 | Q57: 102114 | R57: 102114 | U57: 2534317 | AA57: 5637274
A58: 34552 | B58: 2v2 Team | D58: 36283 | E58: 1 | G58: 520773 | H58: 520773 | K58: 1950 | L58: 3v3 Team | N58: 2304 | O58: 6 | Q58: 102188 | R58: 102188 | U58: 2255411 | AA58: 5712056
A59: 34594 | B59: 4v4r | D59: 36322 | E59: 1 | G59: 1129793 | K59: 1950 | L59: 3v3 Team | N59: 2381 | O59: 1 | Q59: 1022306 | R59: 1022306 | U59: 4754912 | AA59: 4941234
A60: 34607 | B60: 3v3r | D60: 36327 | E60: 1 | F60: 36327 | G60: 897907 | K60: 1950 | L60: 2v2r | N60: 2390 | O60: 1 | Q60: 1022562 | R60: 1022562 | U60: 2892873 | AA60: 295842
A61: 34648 | B61: 4v4r | D61: 36373 | E61: 2 | G61: 4402512 | H61: 4402512 | K61: 1950 | L61: 3v3r | N61: 2461 | O61: 1 | Q61: 1022710 | R61: 1022710 | U61: 4821745 | AA61: 4783350
A62: 34668 | B62: 3v3r | D62: 36429 | E62: 2 | G62: 4626959 | K62: 1950 | L62: 4v4r | N62: 2521 | O62: 4 | Q62: 1022755 | U62: 2278690 | AA62: 4292739
A63: 34736 | B63: 2v2 Team | D63: 36441 | E63: 6 | F63: 36441 | G63: 3929121 | H63: 3929121 | K63: 1963 | L63: 2v2 Team | N63: 2524 | O63: 2 | Q63: 1023378 | U63: 1944914 | AA63: 5564219
A64: 34916 | B64: 2v2 Team | D64: 36743 | E64: 1 | F64: 36743 | G64: 2713323 | K64: 1963 | L64: 2v2r | N64: 2550 | O64: 1 | Q64: 102341 | R64: 102341 | U64: 705381 | AA64: 830156
A65: 34916 | B65: 2v2r | D65: 36826 | E65: 6 | F65: 36826 | G65: 1241759 | K65: 1974 | L65: 2v2 Team | N65: 2607 | O65: 2 | P65: 2607 | Q65: 1023819 | R65: 1023819 | U65: 1493515 | AA65: 584906
A66: 34916 | B66: 3v3r | D66: 36870 | E66: 2 | G66: 1315148 | K66: 1992 | L66: 2v2 Team | N66: 2611 | O66: 3 | P66: 2611 | Q66: 1024283 | U66: 38861 | AA66: 3553588
A67: 34916 | B67: 4v4r | D67: 36885 | E67: 2 | F67: 36885 | G67: 89667 | K67: 1992 | L67: 4v4r | N67: 2625 | O67: 1 | Q67: 1024844 | R67: 1024844 | U67: 695360 | AA67: 514117
A68: 35056 | B68: 2v2 Team | D68: 36908 | E68: 2 | F68: 36908 | G68: 944021 | H68: 944021 | K68: 1994 | L68: 3v3r | N68: 2632 | O68: 2 | Q68: 1025150 | U68: 5614159 | AA68: 5115490
A69: 35056 | B69: 3v3r | D69: 36930 | E69: 2 | F69: 36930 | G69: 1190053 | H69: 1190053 | K69: 2011 | L69: 2v2 Team | N69: 2663 | O69: 1 | P69: 2663 | Q69: 1025163 | U69: 5729143 | AA69: 5564011
A70: 35127 | B70: 2v2r | D70: 37031 | E70: 3 | G70: 332753 | K70: 2011 | L70: 2v2 Team | N70: 2668 | O70: 1 | P70: 2668 | Q70: 1025410 | U70: 582421 | AA70: 268678
A71: 35229 | B71: 3v3r | D71: 37041 | E71: 2 | G71: 4374470 | K71: 2011 | L71: 2v2 Team | N71: 2712 | O71: 1 | Q71: 1025807 | R71: 1025807 | U71: 3527723 | AA71: 3032318
A72: 35237 | B72: 3v3r | D72: 37121 | E72: 1 | G72: 1046625 | K72: 2011 | L72: 2v2r | N72: 2725 | O72: 8 | Q72: 1026852 | U72: 4898253 | AA72: 3422733
A73: 35269 | B73: 2v2 Team | D73: 37282 | E73: 3 | G73: 1033821 | H73: 1033821 | K73: 2011 | L73: 3v3r | N73: 2743 | O73: 3 | Q73: 1026909 | U73: 3161837 | AA73: 5284716
A74: 35347 | B74: 2v2r | D74: 37328 | E74: 1 | G74: 2942666 | H74: 2942666 | K74: 2015 | L74: 2v2 Team | N74: 2795 | O74: 1 | Q74: 1028105 | R74: 1028105 | U74: 373275 | AA74: 2481909
A75: 35421 | B75: 3v3r | D75: 37442 | E75: 1 | G75: 1171280 | K75: 2064 | L75: 2v2r | N75: 2802 | O75: 1 | Q75: 1028228 | R75: 1028228 | U75: 2147387 | AA75: 1085895
A76: 35586 | B76: 3v3r | D76: 37591 | E76: 1 | G76: 1434084 | K76: 2064 | L76: 3v3r | N76: 2820 | O76: 2 | Q76: 1028410 | U76: 5083017 | AA76: 2629757
A77: 35633 | B77: 3v3r | D77: 37723 | E77: 1 | G77: 2789664 | K77: 2064 | L77: 4v4r | N77: 2838 | O77: 1 | Q77: 1029078 | R77: 1029078 | U77: 5328720 | AA77: 5443472
A78: 35835 | B78: 3v3r | D78: 37812 | E78: 2 | G78: 302380 | H78: 302380 | K78: 2065 | L78: 2v2 Team | N78: 2900 | O78: 2 | Q78: 1029138 | R78: 1029138 | U78: 3095469 | AA78: 2028354
A79: 35847 | B79: 4v4r | D79: 37819 | E79: 1 | G79: 243947 | H79: 243947 | K79: 2070 | L79: 2v2 Team | N79: 2903 | O79: 1 | Q79: 1029951 | R79: 1029951 | U79: 157688 | AA79: 2112294
A80: 36015 | B80: 2v2 Team | D80: 37838 | E80: 1 | G80: 4325846 | H80: 4325846 | K80: 2071 | L80: 2v2 Team | N80: 2929 | O80: 1 | Q80: 1029963 | R80: 1029963 | U80: 4592134 | AA80: 1092006
A81: 36015 | B81: 2v2r | D81: 37971 | E81: 2 | F81: 37971 | G81: 1109489 | H81: 1109489 | K81: 2071 | L81: 2v2 Team | N81: 2964 | O81: 1 | Q81: 1030171 | U81: 4524243 | AA81: 4235033
A82: 36015 | B82: 3v3r | D82: 37985 | E82: 3 | G82: 3950454 | K82: 2098 | L82: 2v2r | N82: 2965 | O82: 2 | Q82: 1030226 | U82: 2054058 | AA82: 4184820
A83: 36015 | B83: 4v4r | D83: 38027 | E83: 2 | F83: 38027 | G83: 4310696 | K83: 2098 | L83: 3v3r | N83: 2982 | O83: 1 | Q83: 1030461 | U83: 1155845 | AA83: 4420277
A84: 36071 | B84: 2v2 Team | D84: 38090 | E84: 1 | G84: 959102 | K84: 2098 | L84: 4v4r | N84: 3004 | O84: 1 | Q84: 1030550 | U84: 1223511 | AA84: 5679764
A85: 36115 | B85: 2v2r | D85: 38371 | E85: 3 | G85: 4614683 | K85: 2109 | L85: 2v2 Team | N85: 3022 | O85: 3 | P85: 3022 | Q85: 103083 | R85: 103083 | U85: 1339358 | AA85: 1586709
A86: 36240 | B86: 3v3r | D86: 38400 | E86: 1 | G86: 815200 | K86: 2118 | L86: 2v2 Team | N86: 3038 | O86: 4 | P86: 3038 | Q86: 1031472 | R86: 1031472 | U86: 4931670 | AA86: 5211486
A87: 36240 | B87: 4v4r | D87: 38541 | E87: 1 | G87: 2510380 | H87: 2510380 | K87: 2145 | L87: 2v2 Team | N87: 3067 | O87: 3 | Q87: 1032071 | U87: 602121 | AA87: 5604798
A88: 36283 | B88: 3v3r | D88: 38583 | E88: 1 | F88: 38583 | G88: 4198463 | K88: 2145 | L88: 2v2 Team | N88: 3084 | O88: 2 | P88: 3084 | Q88: 1032167 | U88: 3416507 | AA88: 1746557
A89: 36322 | B89: 4v4r | D89: 38605 | E89: 1 | G89: 812513 | K89: 2154 | L89: 3v3 Team | N89: 3088 | O89: 1 | Q89: 1032202 | U89: 956195 | AA89: 4090240
A90: 36327 | B90: 2v2r | D90: 38691 | E90: 2 | F90: 38691 | G90: 1272006 | H90: 1272006 | K90: 2172 | L90: 2v2 Team | N90: 3104 | O90: 1 | Q90: 1032829 | U90: 2241573 | AA90: 5188937
A91: 36373 | B91: 3v3r | D91: 38781 | E91: 1 | G91: 4594535 | K91: 2226 | L91: 3v3r | N91: 3147 | O91: 2 | P91: 3147 | Q91: 1032845 | R91: 1032845 | U91: 1833110 | AA91: 596238
A92: 36373 | B92: 4v4r | D92: 38798 | E92: 1 | F92: 38798 | G92: 2053038 | K92: 2274 | L92: 2v2r | N92: 3159 | O92: 1 | Q92: 1033391 | U92: 2130901 | AA92: 2911549
A93: 36429 | B93: 3v3r | D93: 38818 | E93: 1 | G93: 4369356 | K93: 2274 | L93: 3v3r | N93: 3163 | O93: 4 | Q93: 1034022 | R93: 1034022 | U93: 599065 | AA93: 3316629
A94: 36429 | B94: 4v4r | D94: 38822 | E94: 1 | G94: 4516163 | K94: 2278 | L94: 3v3r | N94: 3182 | O94: 1 | Q94: 1034073 | R94: 1034073 | U94: 2672446 | AA94: 3725865
A95: 36441 | B95: 2v2 Team | D95: 38827 | E95: 1 | G95: 110412 | K95: 2278 | L95: 4v4r | N95: 3245 | O95: 1 | Q95: 1034216 | R95: 1034216 | U95: 327221 | AA95: 4176673
A96: 36441 | B96: 2v2 Team | D96: 38871 | E96: 1 | F96: 38871 | G96: 439290 | K96: 2299 | L96: 3v3r | N96: 3257 | O96: 1 | Q96: 1034299 | U96: 1828041 | AA96: 5183360
A97: 36441 | B97: 2v2 Team | D97: 39050 | E97: 2 | G97: 172025 | K97: 2299 | L97: 4v4r | N97: 3265 | O97: 1 | P97: 3265 | Q97: 1034713 | R97: 1034713 | U97: 4990201 | AA97: 1031562
A98: 36441 | B98: 2v2r | D98: 39057 | E98: 3 | F98: 39057 | G98: 374666 | H98: 374666 | K98: 2301 | L98: 4v4r | N98: 3376 | O98: 4 | Q98: 1034756 | R98: 1034756 | U98: 5634764 | AA98: 4787118
A99: 36441 | B99: 3v3r | D99: 39065 | E99: 2 | F99: 39065 | G99: 1323369 | H99: 1323369 | K99: 2303 | L99: 2v2 Team | N99: 3395 | O99: 1 | P99: 3395 | Q99: 1035185 | R99: 1035185 | U99: 3762991 | AA99: 5575567
A100: 36441 | B100: 4v4r | D100: 39235 | E100: 1 | F100: 39235 | G100: 4474686 | K100: 2303 | L100: 2v2 Team | N100: 3406 | O100: 1 | P100: 3406 | Q100: 1035207 | U100: 5660806 | AA100: 3437482
A101: 36743 | B101: 2v2r | D101: 39474 | E101: 1 | G101: 683589 | K101: 2303 | L101: 3v3 Team | N101: 3422 | O101: 1 | Q101: 1035356 | R101: 1035356 | U101: 4096299 | AA101: 630029
A102: 36826 | B102: 2v2 Team | D102: 39504 | E102: 1 | F102: 39504 | G102: 999644 | H102: 999644 | K102: 2303 | L102: 3v3 Team | N102: 3423 | O102: 1 | Q102: 1035450 | U102: 3432188 | AA102: 4965455
A103: 36826 | B103: 2v2 Team | D103: 39538 | E103: 2 | G103: 610646 | H103: 610646 | K103: 2303 | L103: 3v3 Team | N103: 3445 | O103: 5 | P103: 3445 | Q103: 1035665 | U103: 113930 | AA103: 4240985
A104: 36826 | B104: 2v2r | D104: 39634 | E104: 1 | F104: 39634 | G104: 656865 | H104: 656865 | K104: 2303 | L104: 3v3 Team | N104: 3508 | O104: 4 | Q104: 1036200 | R104: 1036200 | U104: 1082510 | AA104: 4372172
A105: 36826 | B105: 3v3 Team | D105: 39854 | E105: 1 | F105: 39854 | G105: 721233 | K105: 2303 | L105: 2v2r | N105: 3512 | O105: 1 | Q105: 1036462 | U105: 1962400 | AA105: 5679350
A106: 36826 | B106: 3v3r | D106: 39892 | E106: 1 | G106: 469215 | H106: 469215 | K106: 2303 | L106: 3v3r | N106: 3535 | O106: 1 | Q106: 1036805 | R106: 1036805 | U106: 295342 | AA106: 5208360
A107: 36826 | B107: 4v4r | D107: 39893 | E107: 1 | F107: 39893 | G107: 1120250 | K107: 2303 | L107: 4v4r | N107: 3536 | O107: 2 | Q107: 1037166 | U107: 3584510 | AA107: 3630144
A108: 36870 | B108: 2v2 Team | D108: 39948 | E108: 1 | G108: 154964 | H108: 154964 | K108: 2304 | L108: 2v2 Team | N108: 3563 | O108: 1 | Q108: 1037353 | R108: 1037353 | U108: 5398293 | AA108: 4234515
A109: 36870 | B109: 2v2 Team | D109: 39976 | E109: 1 | G109: 1324306 | H109: 1324306 | K109: 2304 | L109: 2v2 Team | N109: 3571 | O109: 1 | Q109: 1037465 | R109: 1037465 | U109: 499872 | AA109: 4865687
A110: 36885 | B110: 2v2 Team | D110: 40027 | E110: 1 | G110: 2609833 | K110: 2304 | L110: 2v2 Team | N110: 3572 | O110: 1 | Q110: 1037466 | U110: 1359690 | AA110: 5089805
A111: 36885 | B111: 4v4r | D111: 40064 | E111: 1 | G111: 373723 | K111: 2304 | L111: 3v3 Team | N111: 3573 | O111: 1 | Q111: 1037535 | U111: 4455561 | AA111: 5175505
A112: 36908 | B112: 3v3r | D112: 40091 | E112: 1 | G112: 864219 | H112: 864219 | K112: 2304 | L112: 4v4 Team | N112: 3581 | O112: 1 | Q112: 103754 | R112: 103754 | U112: 2877259 | AA112: 3354619
A113: 36908 | B113: 4v4r | D113: 40193 | E113: 1 | G113: 4291977 | K113: 2304 | L113: 3v3r | N113: 3709 | O113: 1 | P113: 3709 | Q113: 1037729 | U113: 1460106 | AA113: 619386
A114: 36930 | B114: 2v2 Team | D114: 40347 | E114: 1 | G114: 848194 | K114: 2381 | L114: 2v2 Team | N114: 3710 | O114: 2 | Q114: 1040133 | R114: 1040133 | U114: 5539024 | AA114: 57516
A115: 36930 | B115: 2v2 Team | D115: 40438 | E115: 1 | G115: 4632676 | K115: 2390 | L115: 2v2 Team | N115: 3715 | O115: 1 | Q115: 1040456 | U115: 1500710 | AA115: 3937404
A116: 37031 | B116: 2v2 Team | D116: 40750 | E116: 1 | G116: 285137 | K116: 2461 | L116: 4v4r | N116: 3718 | O116: 1 | Q116: 1040645 | U116: 598470 | AA116: 696842
A117: 37031 | B117: 2v2 Team | D117: 40761 | E117: 2 | F117: 40761 | G117: 3591895 | K117: 2521 | L117: 2v2 Team | N117: 3754 | O117: 1 | Q117: 1042054 | R117: 1042054 | U117: 3302533 | AA117: 794602
A118: 37031 | B118: 3v3 Team | D118: 40763 | E118: 1 | G118: 3640762 | H118: 3640762 | K118: 2521 | L118: 2v2 Team | N118: 3765 | O118: 2 | P118: 3765 | Q118: 1042436 | U118: 3898504 | AA118: 1230490
A119: 37041 | B119: 4v4 Team | D119: 40801 | E119: 1 | G119: 2572838 | K119: 2521 | L119: 3v3 Team | N119: 3822 | O119: 1 | Q119: 1042704 | U119: 5399139 | AA119: 5634764
A120: 37041 | B120: 4v4r | D120: 40860 | E120: 1 | G120: 1187328 | K120: 2521 | L120: 3v3r | N120: 3829 | O120: 1 | P120: 3829 | Q120: 1043790 | R120: 1043790 | U120: 784173 | AA120: 3122427
A121: 37121 | B121: 2v2 Team | D121: 40883 | E121: 2 | G121: 559183 | K121: 2524 | L121: 2v2 Team | N121: 3830 | O121: 3 | P121: 3830 | Q121: 1043792 | U121: 3958256 | AA121: 5339333
A122: 37282 | B122: 2v2 Team | D122: 40910 | E122: 3 | F122: 40910 | G122: 941414 | H122: 941414 | K122: 2524 | L122: 2v2r | N122: 3839 | O122: 1 | P122: 3839 | Q122: 1043821 | U122: 5067993 | AA122: 4342328
A123: 37282 | B123: 3v3r | D123: 40984 | E123: 1 | G123: 1900117 | K123: 2550 | L123: 2v2 Team | N123: 3894 | O123: 1 | P123: 3894 | Q123: 1044009 | U123: 899251 | AA123: 4323295
A124: 37282 | B124: 4v4r | D124: 41059 | E124: 1 | G124: 2498777 | K124: 2607 | L124: 2v2 Team | N124: 3898 | O124: 1 | Q124: 1044197 | R124: 1044197 | U124: 533097 | AA124: 4386676
A125: 37328 | B125: 2v2 Team | D125: 41168 | E125: 2 | G125: 4626660 | K125: 2607 | L125: 3v3 Team | N125: 3900 | O125: 4 | P125: 3900 | Q125: 1044285 | R125: 1044285 | U125: 535684 | AA125: 5575065
A126: 37442 | B126: 3v3r | D126: 41584 | E126: 1 | G126: 3441733 | H126: 3441733 | K126: 2611 | L126: 2v2 Team | N126: 3921 | O126: 2 | P126: 3921 | Q126: 1045276 | U126: 3704301 | AA126: 2986908
A127: 37591 | B127: 4v4r | D127: 41634 | E127: 2 | G127: 4540108 | H127: 4540108 | K127: 2611 | L127: 3v3 Team | N127: 3925 | O127: 3 | P127: 3925 | Q127: 1045324 | U127: 4912437 | AA127: 3056627
A128: 37723 | B128: 3v3 Team | D128: 41897 | E128: 1 | G128: 818638 | K128: 2611 | L128: 4v4r | N128: 3943 | O128: 1 | Q128: 1045729 | R128: 1045729 | U128: 1805644 | AA128: 5339566
A129: 37812 | B129: 3v3r | D129: 42079 | E129: 1 | G129: 4581909 | K129: 2625 | L129: 2v2 Team | N129: 3967 | O129: 1 | Q129: 1045796 | U129: 741190 | AA129: 353130
A130: 37812 | B130: 4v4r | D130: 42289 | E130: 1 | F130: 42289 | G130: 1264825 | K130: 2632 | L130: 3v3r | N130: 3972 | O130: 5 | P130: 3972 | Q130: 104601 | R130: 104601 | U130: 2255967 | AA130: 1688908
A131: 37819 | B131: 4v4r | D131: 42357 | E131: 2 | G131: 398604 | K131: 2632 | L131: 4v4r | N131: 3975 | O131: 1 | Q131: 1046348 | U131: 5318537 | AA131: 2544554
A132: 37838 | B132: 4v4r | D132: 42578 | E132: 1 | G132: 4411976 | K132: 2663 | L132: 2v2 Team | N132: 4008 | O132: 1 | Q132: 1046459 | R132: 1046459 | U132: 5017528 | AA132: 4237404
A133: 37971 | B133: 2v2 Team | D133: 42581 | E133: 3 | F133: 42581 | G133: 3352798 | K133: 2668 | L133: 3v3r | N133: 4015 | O133: 1 | Q133: 1046905 | U133: 2297349 | AA133: 4771472
A134: 37971 | B134: 2v2 Team | D134: 42673 | E134: 2 | G134: 823600 | K134: 2712 | L134: 3v3r | N134: 4068 | O134: 1 | Q134: 1047261 | U134: 1223825 | AA134: 5308858
A135: 37985 | B135: 2v2 Team | D135: 42750 | E135: 2 | G135: 4632935 | H135: 4632935 | K135: 2725 | L135: 2v2 Team | N135: 4082 | O135: 1 | Q135: 1047351 | R135: 1047351 | U135: 27484 | AA135: 459994
A136: 37985 | B136: 2v2r | D136: 42898 | E136: 1 | G136: 1615274 | K136: 2725 | L136: 3v3 Team | N136: 4101 | O136: 1 | P136: 4101 | Q136: 1047357 | R136: 1047357 | U136: 2513823 | AA136: 1370100
A137: 37985 | B137: 3v3r | D137: 43017 | E137: 4 | F137: 43017 | G137: 318597 | H137: 318597 | K137: 2725 | L137: 3v3 Team | N137: 4158 | O137: 1 | Q137: 1047706 | R137: 1047706 | U137: 4249381 | AA137: 4969418
A138: 38027 | B138: 2v2r | D138: 43026 | E138: 1 | G138: 3861979 | K138: 2725 | L138: 3v3 Team | N138: 4169 | O138: 1 | Q138: 1047836 | U138: 1241843 | AA138: 5551589
A139: 38027 | B139: 3v3r | D139: 43096 | E139: 3 | G139: 4529388 | H139: 4529388 | K139: 2725 | L139: 3v3 Team | N139: 4179 | O139: 3 | P139: 4179 | Q139: 1047837 | R139: 1047837 | U139: 5570357 | AA139: 2072137
A140: 38090 | B140: 3v3r | D140: 43125 | E140: 2 | G140: 221487 | K140: 2725 | L140: 4v4 Team | N140: 4194 | O140: 1 | P140: 4194 | Q140: 1047981 | R140: 1047981 | U140: 3746521 | AA140: 2924265
A141: 38371 | B141: 2v2 Team | D141: 43144 | E141: 1 | G141: 4624857 | K141: 2725 | L141: 4v4 Team | N141: 4204 | O141: 1 | Q141: 1048585 | R141: 1048585 | U141: 641337 | AA141: 482916
A142: 38371 | B142: 3v3r | D142: 43206 | E142: 1 | G142: 2347923 | H142: 2347923 | K142: 2725 | L142: 4v4r | N142: 4258 | O142: 6 | P142: 4258 | Q142: 1048981 | U142: 2229385 | AA142: 514089
A143: 38371 | B143: 4v4r | D143: 43309 | E143: 3 | F143: 43309 | G143: 4010129 | K143: 2743 | L143: 2v2 Team | N143: 4278 | O143: 1 | Q143: 1049180 | U143: 4269116 | AA143: 732241
A144: 38400 | B144: 2v2r | D144: 43315 | E144: 5 | F144: 43315 | G144: 4187866 | H144: 4187866 | K144: 2743 | L144: 3v3 Team | N144: 4286 | O144: 1 | Q144: 1049624 | U144: 4689143 | AA144: 774621
A145: 38541 | B145: 4v4r | D145: 43352 | E145: 1 | G145: 1536018 | K145: 2743 | L145: 4v4r | N145: 4300 | O145: 2 | P145: 4300 | Q145: 1049823 | R145: 1049823 | U145: 4189184 | AA145: 4033589
A146: 38583 | B146: 3v3r | D146: 43366 | E146: 1 | G146: 1200578 | H146: 1200578 | K146: 2795 | L146: 4v4r | N146: 4336 | O146: 1 | Q146: 1050502 | R146: 1050502 | U146: 430910 | AA146: 4617786
A147: 38605 | B147: 4v4r | D147: 43925 | E147: 1 | F147: 43925 | G147: 135468 | K147: 2802 | L147: 4v4r | N147: 4347 | O147: 1 | Q147: 1050781 | R147: 1050781 | U147: 1765873 | AA147: 5123337
A148: 38691 | B148: 2v2 Team | D148: 43964 | E148: 3 | F148: 43964 | G148: 3996666 | K148: 2820 | L148: 3v3r | N148: 4356 | O148: 2 | Q148: 1051413 | R148: 1051413 | U148: 666334 | AA148: 147199
A149: 38691 | B149: 3v3r | D149: 44158 | E149: 1 | G149: 3972048 | H149: 3972048 | K149: 2820 | L149: 4v4r | N149: 4395 | O149: 1 | Q149: 1051583 | R149: 1051583 | U149: 1823197 | AA149: 3874241
A150: 38781 | B150: 4v4r | D150: 44167 | E150: 2 | G150: 4402525 | H150: 4402525 | K150: 2838 | L150: 4v4r | N150: 4445 | O150: 1 | P150: 4445 | Q150: 1051833 | U150: 2887247 | AA150: 4081299
A151: 38798 | B151: 2v2 Team | D151: 44282 | E151: 4 | G151: 570276 | K151: 2900 | L151: 3v3r | N151: 4512 | O151: 2 | Q151: 10528 | R151: 10528 | U151: 2482187 | AA151: 4876032
A152: 38818 | B152: 3v3r | D152: 44389 | E152: 1 | G152: 2489900 | K152: 2900 | L152: 4v4r | N152: 4542 | O152: 1 | Q152: 1053839 | R152: 1053839 | U152: 5263136 | AA152: 5500430
A153: 38822 | B153: 4v4r | D153: 44408 | E153: 1 | G153: 4029635 | H153: 4029635 | K153: 2903 | L153: 2v2r | N153: 4555 | O153: 2 | Q153: 1054015 | R153: 1054015 | U153: 4393829 | AA153: 1173508
A154: 38827 | B154: 4v4r | D154: 44455 | E154: 1 | G154: 4086774 | K154: 2929 | L154: 2v2r | N154: 4562 | O154: 1 | Q154: 1055319 | U154: 258585 | AA154: 1825583
A155: 38871 | B155: 2v2 Team | D155: 44468 | E155: 2 | F155: 44468 | G155: 943884 | K155: 2964 | L155: 2v2 Team | N155: 4581 | O155: 1 | Q155: 1055369 | U155: 5140880 | AA155: 2870032
A156: 39050 | B156: 3v3r | D156: 44486 | E156: 2 | G156: 4323542 | H156: 4323542 | K156: 2965 | L156: 3v3r | N156: 4585 | O156: 1 | Q156: 1056315 | R156: 1056315 | U156: 3341586 | AA156: 3460824
A157: 39050 | B157: 4v4r | D157: 44713 | E157: 2 | G157: 3894158 | K157: 2965 | L157: 4v4r | N157: 4602 | O157: 1 | Q157: 1056484 | R157: 1056484 | U157: 2821812 | AA157: 4655017
A158: 39057 | B158: 2v2 Team | D158: 44866 | E158: 4 | F158: 44866 | G158: 943979 | H158: 943979 | K158: 2982 | L158: 2v2r | N158: 4636 | O158: 1 | P158: 4636 | Q158: 1056507 | R158: 1056507 | U158: 5537721 | AA158: 4704362
A159: 39057 | B159: 2v2 Team | D159: 45089 | E159: 1 | F159: 45089 | G159: 755913 | K159: 3004 | L159: 2v2r | N159: 4673 | O159: 1 | Q159: 1056592 | R159: 1056592 | U159: 368118 | AA159: 4027452
A160: 39057 | B160: 2v2r | D160: 45205 | E160: 1 | G160: 197877 | H160: 197877 | K160: 3022 | L160: 2v2 Team | N160: 4682 | O160: 2 | Q160: 1057217 | R160: 1057217 | U160: 4882461 | AA160: 4027452
A161: 39065 | B161: 3v3r | D161: 45380 | E161: 3 | F161: 45380 | G161: 1055014 | K161: 3022 | L161: 3v3 Team | N161: 4695 | O161: 2 | Q161: 105734 | R161: 105734 | U161: 1982825 | AA161: 4434327
A162: 39065 | B162: 4v4r | D162: 45455 | E162: 1 | G162: 2310266 | K162: 3022 | L162: 3v3 Team | N162: 4758 | O162: 1 | Q162: 1057673 | U162: 4251582 | AA162: 2465108
A163: 39235 | B163: 4v4r | D163: 45488 | E163: 1 | G163: 3087526 | K163: 3038 | L163: 3v3 Team | N163: 4773 | O163: 1 | Q163: 1058479 | U163: 5665620 | AA163: 5601301
A164: 39474 | B164: 2v2r | D164: 45578 | E164: 1 | G164: 3613511 | H164: 3613511 | K164: 3038 | L164: 4v4 Team | N164: 4780 | O164: 1 | P164: 4780 | Q164: 1058552 | R164: 1058552 | U164: 4901036 | AA164: 2981260
A165: 39504 | B165: 2v2 Team | D165: 45608 | E165: 1 | G165: 919239 | K165: 3038 | L165: 2v2r | N165: 4850 | O165: 1 | Q165: 1058754 | R165: 1058754 | U165: 20951 | AA165: 445926
A166: 39538 | B166: 3v3 Team | D166: 45742 | E166: 1 | F166: 45742 | G166: 1627893 | K166: 3038 | L166: 4v4r | N166: 4878 | O166: 1 | Q166: 1058917 | R166: 1058917 | U166: 4782527 | AA166: 1014012
A167: 39538 | B167: 4v4r | D167: 46030 | E167: 2 | G167: 4091642 | H167: 4091642 | K167: 3067 | L167: 2v2r | N167: 4937 | O167: 2 | Q167: 1059401 | U167: 5062587 | AA167: 4421459
A168: 39634 | B168: 2v2 Team | D168: 46144 | E168: 2 | F168: 46144 | G168: 4617549 | H168: 4617549 | K168: 3067 | L168: 3v3r | N168: 4946 | O168: 1 | P168: 4946 | Q168: 1059516 | R168: 1059516 | U168: 968885 | AA168: 4836382
A169: 39854 | B169: 2v2 Team | D169: 46295 | E169: 1 | G169: 4651511 | K169: 3067 | L169: 4v4r | N169: 4971 | O169: 2 | Q169: 1059737 | U169: 5639889 | AA169: 5745617
A170: 39892 | B170: 3v3r | D170: 46323 | E170: 2 | F170: 46323 | G170: 1105197 | H170: 1105197 | K170: 3084 | L170: 3v3r | N170: 4983 | O170: 2 | Q170: 1061042 | R170: 1061042 | U170: 643694 | AA170: 3207081
A171: 39893 | B171: 2v2 Team | D171: 46401 | E171: 1 | G171: 1039041 | K171: 3084 | L171: 4v4r | N171: 5001 | O171: 1 | P171: 5001 | Q171: 1062026 | U171: 2438588 | AA171: 3259398
A172: 39948 | B172: 3v3r | D172: 46478 | E172: 1 | G172: 4027211 | K172: 3088 | L172: 4v4r | N172: 5012 | O172: 1 | P172: 5012 | Q172: 1062408 | R172: 1062408 | U172: 3619029 | AA172: 4117758
A173: 39976 | B173: 3v3r | D173: 46637 | E173: 3 | F173: 46637 | G173: 950577 | H173: 950577 | K173: 3104 | L173: 2v2r | N173: 5042 | O173: 1 | P173: 5042 | Q173: 1062807 | U173: 3448786 | AA173: 3732293
A174: 40027 | B174: 3v3r | D174: 46706 | E174: 1 | F174: 46706 | G174: 3423200 | K174: 3147 | L174: 3v3r | N174: 5093 | O174: 1 | P174: 5093 | Q174: 1062826 | R174: 1062826 | U174: 4543910 | AA174: 301426
A175: 40064 | B175: 3v3r | D175: 46713 | E175: 3 | G175: 544512 | K175: 3147 | L175: 4v4r | N175: 5110 | O175: 1 | Q175: 1063030 | R175: 1063030 | U175: 2301496 | AA175: 3186019
A176: 40091 | B176: 2v2 Team | D176: 46804 | E176: 2 | G176: 2068161 | K176: 3159 | L176: 4v4r | N176: 5231 | O176: 6 | P176: 5231 | Q176: 1063088 | U176: 5276936 | AA176: 4261463
A177: 40193 | B177: 2v2 Team | D177: 47119 | E177: 2 | G177: 904370 | H177: 904370 | K177: 3163 | L177: 2v2 Team | N177: 5246 | O177: 1 | Q177: 1063138 | R177: 1063138 | U177: 4834034 | AA177: 4674602
A178: 40347 | B178: 3v3r | D178: 47235 | E178: 2 | F178: 47235 | G178: 226376 | K178: 3163 | L178: 3v3 Team | N178: 5255 | O178: 1 | Q178: 1063237 | U178: 3723871 | AA178: 2292753
A179: 40438 | B179: 3v3r | D179: 47257 | E179: 1 | G179: 1297270 | K179: 3163 | L179: 4v4 Team | N179: 5355 | O179: 5 | P179: 5355 | Q179: 1063280 | R179: 1063280 | U179: 4475577 | AA179: 710911
A180: 40750 | B180: 3v3r | D180: 47329 | E180: 1 | G180: 664469 | K180: 3163 | L180: 3v3r | N180: 5420 | O180: 1 | Q180: 1063305 | R180: 1063305 | U180: 611616 | AA180: 5018971
A181: 40761 | B181: 2v2r | D181: 47366 | E181: 5 | F181: 47366 | G181: 1172655 | K181: 3182 | L181: 3v3r | N181: 5456 | O181: 1 | Q181: 1063475 | U181: 1084008 | AA181: 294593
A182: 40761 | B182: 3v3r | D182: 47639 | E182: 4 | F182: 47639 | G182: 2987884 | K182: 3245 | L182: 2v2r | N182: 5479 | O182: 2 | Q182: 1063496 | R182: 1063496 | U182: 3496752 | AA182: 1107160
A183: 40763 | B183: 4v4r | D183: 47900 | E183: 1 | F183: 47900 | G183: 942306 | H183: 942306 | K183: 3257 | L183: 2v2r | N183: 5524 | O183: 1 | Q183: 1063591 | U183: 329792 | AA183: 2515791
A184: 40801 | B184: 3v3r | D184: 47909 | E184: 1 | F184: 47909 | G184: 1329519 | H184: 1329519 | K184: 3265 | L184: 3v3 Team | N184: 5533 | O184: 1 | Q184: 1063892 | R184: 1063892 | U184: 210293 | AA184: 4059628
A185: 40860 | B185: 3v3r | D185: 48011 | E185: 2 | G185: 115725 | K185: 3376 | L185: 2v2 Team | N185: 5590 | O185: 2 | P185: 5590 | Q185: 1064170 | U185: 5547983 | AA185: 4300795
A186: 40883 | B186: 2v2 Team | D186: 48026 | E186: 1 | F186: 48026 | G186: 280438 | K186: 3376 | L186: 2v2 Team | N186: 5601 | O186: 5 | Q186: 1064336 | R186: 1064336 | U186: 655855 | AA186: 2401535
A187: 40883 | B187: 4v4r | D187: 48364 | E187: 2 | F187: 48364 | G187: 4310045 | H187: 4310045 | K187: 3376 | L187: 3v3 Team | N187: 5608 | O187: 1 | P187: 5608 | Q187: 1064462 | U187: 4534348 | AA187: 4653465
A188: 40910 | B188: 2v2 Team | D188: 48628 | E188: 2 | F188: 48628 | G188: 2184149 | K188: 3376 | L188: 3v3 Team | N188: 5618 | O188: 4 | P188: 5618 | Q188: 1064676 | U188: 4957883 | AA188: 4901783
A189: 40910 | B189: 2v2r | D189: 49075 | E189: 1 | F189: 49075 | G189: 2771051 | K189: 3395 | L189: 2v2 Team | N189: 5634 | O189: 1 | Q189: 1064918 | U189: 1291442 | AA189: 5284167
A190: 40910 | B190: 3v3r | D190: 49261 | E190: 2 | G190: 4177896 | K190: 3406 | L190: 2v2 Team | N190: 5712 | O190: 1 | P190: 5712 | Q190: 1065102 | R190: 1065102 | U190: 4617786 | AA190: 2013390
A191: 40984 | B191: 2v2 Team | D191: 49321 | E191: 2 | G191: 1255664 | K191: 3422 | L191: 4v4r | N191: 5761 | O191: 1 | Q191: 106676 | R191: 106676 | U191: 5594636 | AA191: 2409333
A192: 41059 | B192: 2v2r | D192: 49356 | E192: 1 | F192: 49356 | G192: 1048680 | K192: 3423 | L192: 2v2 Team | N192: 5798 | O192: 1 | Q192: 1066783 | R192: 1066783 | U192: 5192743 | AA192: 4315763
A193: 41168 | B193: 3v3r | D193: 49758 | E193: 1 | G193: 4530881 | K193: 3445 | L193: 2v2 Team | N193: 5808 | O193: 1 | Q193: 1066913 | R193: 1066913 | U193: 1766312 | AA193: 4432570
A194: 41168 | B194: 4v4r | D194: 49820 | E194: 1 | G194: 3945061 | K194: 3445 | L194: 3v3 Team | N194: 5832 | O194: 3 | P194: 5832 | Q194: 1066963 | R194: 1066963 | U194: 4192600 | AA194: 1848032
A195: 41584 | B195: 2v2 Team | D195: 49882 | E195: 1 | G195: 2665857 | K195: 3445 | L195: 2v2r | N195: 5833 | O195: 17 | P195: 5833 | Q195: 1067044 | U195: 328093 | AA195: 5341885
A196: 41634 | B196: 2v2r | D196: 50014 | E196: 1 | G196: 823527 | H196: 823527 | K196: 3445 | L196: 3v3r | N196: 5859 | O196: 1 | Q196: 1067601 | U196: 426539 | AA196: 1835233
A197: 41634 | B197: 3v3r | D197: 50244 | E197: 1 | G197: 4539374 | K197: 3445 | L197: 4v4r | N197: 5916 | O197: 1 | Q197: 1067980 | R197: 1067980 | U197: 4726947 | AA197: 3373056
A198: 41897 | B198: 4v4r | D198: 50261 | E198: 1 | F198: 50261 | G198: 4594332 | K198: 3508 | L198: 2v2 Team | N198: 5933 | O198: 1 | P198: 5933 | Q198: 1068153 | R198: 1068153 | U198: 2407423 | AA198: 4202565
A199: 42079 | B199: 3v3r | D199: 50264 | E199: 3 | G199: 3675611 | K199: 3508 | L199: 2v2 Team | N199: 5961 | O199: 1 | Q199: 1068723 | U199: 4414573 | AA199: 5645134
A200: 42289 | B200: 2v2 Team | D200: 50849 | E200: 1 | G200: 4616806 | K200: 3508 | L200: 3v3 Team | N200: 6006 | O200: 1 | Q200: 1068814 | R200: 1068814 | U200: 2102333 | AA200: 221217
... 2050 more rows
